DATE OCCURRED,LOCAL AUTHORITY DEPT,AMOUNT,SUMMARY OF PURPOSE,MERCHANT CATEGORY,BENEFICIARY,VALUE ADDED TAX THAT CANNOT BE RECOVERED
04/08/16,ADMINISTRATION,199.00 ,Permission to work in the UK Cert from UK Border Agency,Statutory Bodies,UKBA4478771755,Not applicable
09/09/16,ADMINISTRATION,1476.00 ,Permission to work in the UK Cert from UK Border Agency,Statutory Bodies,UKBA5513959241,Not applicable
10/08/16,ADMINISTRATION,10.85 ,Grocery stores,General Retail and Wholesale,SAINSBURYS S/MKTS,Not applicable
26/08/16,ADMINISTRATION,31.50 ,Toll and bridge fees,Travel - Air/Rail/Road,CONGESTION CHARGE,Not applicable
04/07/16,ADMINISTRATION,9.92 ,Grocery stores,General Retail and Wholesale,TESCO STORE 3235,Not applicable
05/07/16,ADMINISTRATION,29.45 ,Grocery stores,General Retail and Wholesale,SAINSBURYS SACAT 0069,Not applicable
05/07/16,ADMINISTRATION,3.60 ,Grocery stores,General Retail and Wholesale,WAITROSE 673,Not applicable
07/07/16,ADMINISTRATION,6.69 ,Grocery stores,General Retail and Wholesale,CO-OP GROUP FOOD,Not applicable
13/07/16,ADMINISTRATION,11.10 ,Grocery stores,General Retail and Wholesale,WAITROSE 673,Not applicable
18/07/16,ADMINISTRATION,26.62 ,Grocery stores,General Retail and Wholesale,ASDA STORES,Not applicable
29/07/16,ADMINISTRATION,13.49 ,Grocery stores,General Retail and Wholesale,SAINSBURYS 0069,Not applicable
11/08/16,ADMINISTRATION,6.19 ,Grocery stores,General Retail and Wholesale,WAITROSE 673,Not applicable
14/09/16,ADMINISTRATION,10.50 ,Grocery stores,General Retail and Wholesale,TESCO STORE 3235,Not applicable
21/09/16,ADMINISTRATION,20.91 ,Grocery stores,General Retail and Wholesale,TESCO STORE 3235,Not applicable
26/09/16,ADMINISTRATION,19.90 ,Grocery stores,General Retail and Wholesale,TESCO STORE 3235,Not applicable
26/09/16,ADMINISTRATION,6.44 ,Grocery stores,General Retail and Wholesale,TESCO STORE 3235,Not applicable
28/09/16,ADMINISTRATION,32.50 ,Grocery stores,General Retail and Wholesale,TESCO STORE 3235,Not applicable
29/09/16,ADMINISTRATION,18.40 ,Grocery stores,General Retail and Wholesale,SAINSBURYS SACAT 0069,Not applicable
02/07/16,ADMINISTRATION,20.00 ,Passenger railways,Travel - Air/Rail/Road,OYSTER AUTOTOPUP,Not applicable
27/07/16,ADMINISTRATION,25.00 ,Passenger railways,Travel - Air/Rail/Road,OYSTER ISSUE WEB,Not applicable
01/07/16,ADMINISTRATION,1.76 ,Book stores,Books and Periodicals,AMAZON UK MARKETPLACE,Not applicable
01/07/16,ADMINISTRATION,21.90 ,Book stores,Books and Periodicals,AMAZON UK MARKETPLACE,Not applicable
01/07/16,ADMINISTRATION,21.44 ,Miscellaneous retail,General Retail and Wholesale,AMAZON UK RETAIL AMAZO,Not applicable
04/07/16,ADMINISTRATION,16.99 ,Book stores,Books and Periodicals,AMAZON UK MARKETPLACE,Not applicable
04/07/16,ADMINISTRATION,16.98 ,Direct sales companies,Mail Order / Direct Selling,AMAZON EU,Not applicable
05/07/16,ADMINISTRATION,29.98 ,Book stores,Books and Periodicals,AMAZON UK MARKETPLACE,Not applicable
07/07/16,ADMINISTRATION,17.98 ,Book stores,Books and Periodicals,AMAZON UK MARKETPLACE,Not applicable
08/07/16,ADMINISTRATION,20.00 ,Passenger railways,Travel - Air/Rail/Road,OYSTER AUTOTOPUP,Not applicable
13/07/16,ADMINISTRATION,7.99 ,Continuous subscriptions,Mail Order / Direct Selling,AMAZON PRIME,Not applicable
13/07/16,ADMINISTRATION,40.77 ,Book stores,Books and Periodicals,AMAZON UK MARKETPLACE,Not applicable
14/07/16,ADMINISTRATION,92.50 ,Passenger railways,Travel - Air/Rail/Road,WWW.REDSPOTTEDHANK,Not applicable
15/07/16,ADMINISTRATION,7.49 ,Book stores,Books and Periodicals,AMAZON UK MARKETPLACE,Not applicable
18/07/16,ADMINISTRATION,62.10 ,Book stores,Books and Periodicals,AMAZON UK MARKETPLACE,Not applicable
18/07/16,ADMINISTRATION,89.61 ,Book stores,Books and Periodicals,AMAZON UK MARKETPLACE,Not applicable
18/07/16,ADMINISTRATION,6.16 ,Miscellaneous retail,General Retail and Wholesale,AMAZON UK RETAIL AMAZO,Not applicable
18/07/16,ADMINISTRATION,20.00 ,Passenger railways,Travel - Air/Rail/Road,OYSTER AUTOTOPUP,Not applicable
19/07/16,ADMINISTRATION,26.97 ,Book stores,Books and Periodicals,AMAZON UK MARKETPLACE,Not applicable
20/07/16,ADMINISTRATION,86.19 ,Direct sales companies,Mail Order / Direct Selling,AMAZON EU,Not applicable
20/07/16,ADMINISTRATION,4.79 ,Direct sales companies,Mail Order / Direct Selling,AMAZON EU,Not applicable
20/07/16,ADMINISTRATION,25.65 ,Passenger railways,Travel - Air/Rail/Road,TRAINLINE,Not applicable
21/07/16,ADMINISTRATION,6.53 ,Miscellaneous retail,General Retail and Wholesale,AMAZON UK RETAIL AMAZO,Not applicable
25/07/16,ADMINISTRATION,20.00 ,Passenger railways,Travel - Air/Rail/Road,OYSTER AUTOTOPUP,Not applicable
26/07/16,ADMINISTRATION,39.87 ,Miscellaneous retail,General Retail and Wholesale,AMAZON UK RETAIL AMAZO,Not applicable
27/07/16,ADMINISTRATION,31.96 ,Book stores,Books and Periodicals,AMAZON UK MARKETPLACE,Not applicable
29/07/16,ADMINISTRATION,19.60 ,Passenger railways,Travel - Air/Rail/Road,SOUTHERN RAILWAY WEB,Not applicable
01/08/16,ADMINISTRATION,5.48 ,Book stores,Books and Periodicals,AMAZON UK MARKETPLACE,Not applicable
01/08/16,ADMINISTRATION,20.00 ,Passenger railways,Travel - Air/Rail/Road,OYSTER AUTOTOPUP,Not applicable
04/08/16,ADMINISTRATION,20.00 ,Passenger railways,Travel - Air/Rail/Road,OYSTER AUTOTOPUP,Not applicable
04/08/16,ADMINISTRATION,14.49 ,Book stores,Books and Periodicals,AMAZON UK MARKETPLACE,Not applicable
05/08/16,ADMINISTRATION,20.00 ,Passenger railways,Travel - Air/Rail/Road,OYSTER BUS AUTOTOP,Not applicable
08/08/16,ADMINISTRATION,20.00 ,Passenger railways,Travel - Air/Rail/Road,OYSTER AUTOTOPUP,Not applicable
17/08/16,ADMINISTRATION,7.04 ,Book stores,Books and Periodicals,AMAZON UK MARKETPLACE,Not applicable
17/08/16,ADMINISTRATION,-7.99 ,Continuous subscriptions,Mail Order / Direct Selling,AMAZON PRIME,Not applicable
18/08/16,ADMINISTRATION,41.99 ,Computer software stores,Computer Equipment & Services,GLOBAL GOLD NETWORK,Not applicable
18/08/16,ADMINISTRATION,180.13 ,Passenger railways,Travel - Air/Rail/Road,TRAINLINE,Not applicable
19/08/16,ADMINISTRATION,20.00 ,Passenger railways,Travel - Air/Rail/Road,OYSTER AUTOTOPUP,Not applicable
22/08/16,ADMINISTRATION,20.00 ,Passenger railways,Travel - Air/Rail/Road,OYSTER BUS AUTOTOP,Not applicable
22/08/16,ADMINISTRATION,20.00 ,Passenger railways,Travel - Air/Rail/Road,OYSTER BUS AUTOTOP,Not applicable
25/08/16,ADMINISTRATION,33.29 ,Book stores,Books and Periodicals,AMAZON UK MARKETPLACE,Not applicable
25/08/16,ADMINISTRATION,70.50 ,Book stores,Books and Periodicals,AMAZON UK MARKETPLACE,Not applicable
26/08/16,ADMINISTRATION,25.70 ,Book stores,Books and Periodicals,AMAZON UK MARKETPLACE,Not applicable
26/08/16,ADMINISTRATION,5.39 ,Book stores,Books and Periodicals,AMAZON UK MARKETPLACE,Not applicable
29/08/16,ADMINISTRATION,6.07 ,Book stores,Books and Periodicals,AMAZON UK MARKETPLACE,Not applicable
29/08/16,ADMINISTRATION,21.69 ,Miscellaneous retail,General Retail and Wholesale,AMAZON UK RETAIL AMAZO,Not applicable
29/08/16,ADMINISTRATION,16.80 ,Book stores,Books and Periodicals,AMAZON UK MARKETPLACE,Not applicable
29/08/16,ADMINISTRATION,7.99 ,Continuous subscriptions,Mail Order / Direct Selling,AMAZON PRIME,Not applicable
30/08/16,ADMINISTRATION,9.98 ,Miscellaneous retail,General Retail and Wholesale,AMAZON UK RETAIL AMAZO,Not applicable
31/08/16,ADMINISTRATION,12.37 ,Miscellaneous retail,General Retail and Wholesale,AMAZON UK RETAIL AMAZO,Not applicable
31/08/16,ADMINISTRATION,119.00 ,Book stores,Books and Periodicals,AMAZON UK MARKETPLACE,Not applicable
01/09/16,ADMINISTRATION,8.24 ,Government services,Statutory Bodies,TNA DISCOVERY ORDERS,Not applicable
02/09/16,ADMINISTRATION,231.99 ,Book stores,Books and Periodicals,AMAZON UK MARKETPLACE,Not applicable
02/09/16,ADMINISTRATION,11.50 ,Book stores,Books and Periodicals,AMAZON UK MARKETPLACE,Not applicable
02/09/16,ADMINISTRATION,11.35 ,Book stores,Books and Periodicals,AMAZON UK MARKETPLACE,Not applicable
02/09/16,ADMINISTRATION,7.99 ,Book stores,Books and Periodicals,AMAZON UK MARKETPLACE,Not applicable
05/09/16,ADMINISTRATION,20.00 ,Passenger railways,Travel - Air/Rail/Road,OYSTER BUS AUTOTOP,Not applicable
05/09/16,ADMINISTRATION,40.99 ,Direct sales companies,Mail Order / Direct Selling,AMAZON EU,Not applicable
05/09/16,ADMINISTRATION,20.00 ,Passenger railways,Travel - Air/Rail/Road,OYSTER AUTOTOPUP,Not applicable
05/09/16,ADMINISTRATION,40.99 ,Miscellaneous retail,General Retail and Wholesale,AMAZON UK RETAIL AMAZO,Not applicable
07/09/16,ADMINISTRATION,25.97 ,Book stores,Books and Periodicals,AMAZON UK MARKETPLACE,Not applicable
08/09/16,ADMINISTRATION,4.99 ,Book stores,Books and Periodicals,AMAZON UK MARKETPLACE,Not applicable
09/09/16,ADMINISTRATION,8.49 ,Book stores,Books and Periodicals,AMAZON UK MARKETPLACE,Not applicable
09/09/16,ADMINISTRATION,24.99 ,Direct sales companies,Mail Order / Direct Selling,AMAZON EU,Not applicable
09/09/16,ADMINISTRATION,20.00 ,Passenger railways,Travel - Air/Rail/Road,OYSTER AUTOTOPUP,Not applicable
12/09/16,ADMINISTRATION,20.00 ,Passenger railways,Travel - Air/Rail/Road,OYSTER BUS AUTOTOP,Not applicable
13/09/16,ADMINISTRATION,14.04 ,Book stores,Books and Periodicals,AMAZON UK MARKETPLACE,Not applicable
15/09/16,ADMINISTRATION,60.00 ,Misc business services,Miscellaneous Industrial/Commercial Supplies,EB  UASCS CARE LEAVERS,Not applicable
15/09/16,ADMINISTRATION,20.00 ,Passenger railways,Travel - Air/Rail/Road,OYSTER AUTOTOPUP,Not applicable
15/09/16,ADMINISTRATION,60.00 ,Misc business services,Miscellaneous Industrial/Commercial Supplies,EB  UASCS CARE LEAVERS,Not applicable
20/09/16,ADMINISTRATION,15.60 ,Book stores,Books and Periodicals,AMAZON UK MARKETPLACE,Not applicable
20/09/16,ADMINISTRATION,55.00 ,Passenger railways,Travel - Air/Rail/Road,OYSTER ISSUE WEB,Not applicable
20/09/16,ADMINISTRATION,30.00 ,Passenger railways,Travel - Air/Rail/Road,OYSTER RENEW WEB,Not applicable
21/09/16,ADMINISTRATION,20.00 ,Passenger railways,Travel - Air/Rail/Road,OYSTER RENEW WEB,Not applicable
22/09/16,ADMINISTRATION,20.00 ,Passenger railways,Travel - Air/Rail/Road,OYSTER AUTOTOPUP,Not applicable
22/09/16,ADMINISTRATION,20.00 ,Passenger railways,Travel - Air/Rail/Road,OYSTER RENEW WEB,Not applicable
22/09/16,ADMINISTRATION,20.00 ,Passenger railways,Travel - Air/Rail/Road,OYSTER RENEW WEB,Not applicable
26/09/16,ADMINISTRATION,20.00 ,Passenger railways,Travel - Air/Rail/Road,OYSTER AUTOTOPUP,Not applicable
26/09/16,ADMINISTRATION,20.00 ,Passenger railways,Travel - Air/Rail/Road,OYSTER AUTOTOPUP,Not applicable
26/09/16,ADMINISTRATION,20.00 ,Passenger railways,Travel - Air/Rail/Road,OYSTER AUTOTOPUP,Not applicable
26/09/16,ADMINISTRATION,20.00 ,Passenger railways,Travel - Air/Rail/Road,OYSTER AUTOTOPUP,Not applicable
28/09/16,ADMINISTRATION,59.94 ,Book stores,Books and Periodicals,AMAZON UK MARKETPLACE,Not applicable
29/09/16,ADMINISTRATION,35.26 ,Computer software stores,Computer Equipment & Services,GLOBAL GOLD NETWORK,Not applicable
05/07/16,EDUCATION AND SOCIAL SERVICES,74.15 ,Passenger railways,Travel - Air/Rail/Road,TRAINLINE,Not applicable
14/07/16,EDUCATION AND SOCIAL SERVICES,142.00 ,Passenger railways,Travel - Air/Rail/Road,EUROSTAR INTERNET,Not applicable
14/07/16,EDUCATION AND SOCIAL SERVICES,112.00 ,Passenger railways,Travel - Air/Rail/Road,EUROSTAR INTERNET,Not applicable
21/07/16,EDUCATION AND SOCIAL SERVICES,164.82 ,Travel agencies,Travel - Air/Rail/Road,HOTELS COM131240695337,Not applicable
21/07/16,EDUCATION AND SOCIAL SERVICES,82.41 ,Travel agencies,Travel - Air/Rail/Road,HOTELS COM131240750644,Not applicable
09/09/16,EDUCATION AND SOCIAL SERVICES,26.27 ,Passenger railways,Travel - Air/Rail/Road,TRAINLINE,Not applicable
08/07/16,EDUCATION AND SOCIAL SERVICES,179.00 ,"Hotels, motels & resorts",Hotels and Accommodation,CROWNE PLAZA MANCHESTE,Not applicable
12/07/16,EDUCATION AND SOCIAL SERVICES,32.00 ,Passenger railways,Travel - Air/Rail/Road,SOUTHEASTERN WEB,Not applicable
12/07/16,EDUCATION AND SOCIAL SERVICES,52.80 ,Passenger railways,Travel - Air/Rail/Road,SOUTHEASTERN WEB,Not applicable
12/07/16,EDUCATION AND SOCIAL SERVICES,36.20 ,Passenger railways,Travel - Air/Rail/Road,SOUTHEASTERN WEB,Not applicable
12/07/16,EDUCATION AND SOCIAL SERVICES,38.30 ,Passenger railways,Travel - Air/Rail/Road,SOUTHEASTERN WEB,Not applicable
14/07/16,EDUCATION AND SOCIAL SERVICES,362.00 ,Passenger railways,Travel - Air/Rail/Road,SOUTHEASTERN WEB,Not applicable
14/07/16,EDUCATION AND SOCIAL SERVICES,229.60 ,Passenger railways,Travel - Air/Rail/Road,VIRGINTRAINS.CO.UK,Not applicable
15/07/16,EDUCATION AND SOCIAL SERVICES,30.50 ,Passenger railways,Travel - Air/Rail/Road,SOUTHEASTERN WEB,Not applicable
15/07/16,EDUCATION AND SOCIAL SERVICES,10.30 ,Passenger railways,Travel - Air/Rail/Road,SOUTHEASTERN WEB,Not applicable
25/07/16,EDUCATION AND SOCIAL SERVICES,285.00 ,Passenger railways,Travel - Air/Rail/Road,SOUTHEASTERN WEB,Not applicable
25/07/16,EDUCATION AND SOCIAL SERVICES,117.00 ,Passenger railways,Travel - Air/Rail/Road,SOUTHEASTERN WEB,Not applicable
25/07/16,EDUCATION AND SOCIAL SERVICES,94.70 ,Passenger railways,Travel - Air/Rail/Road,SOUTHEASTERN WEB,Not applicable
25/07/16,EDUCATION AND SOCIAL SERVICES,10.40 ,Passenger railways,Travel - Air/Rail/Road,SOUTHEASTERN WEB,Not applicable
28/07/16,EDUCATION AND SOCIAL SERVICES,46.10 ,Passenger railways,Travel - Air/Rail/Road,SOUTHEASTERN WEB,Not applicable
28/07/16,EDUCATION AND SOCIAL SERVICES,12.10 ,Passenger railways,Travel - Air/Rail/Road,SOUTHEASTERN WEB,Not applicable
28/07/16,EDUCATION AND SOCIAL SERVICES,45.20 ,Passenger railways,Travel - Air/Rail/Road,SOUTHEASTERN WEB,Not applicable
28/07/16,EDUCATION AND SOCIAL SERVICES,172.20 ,Passenger railways,Travel - Air/Rail/Road,SOUTHEASTERN WEB,Not applicable
01/08/16,EDUCATION AND SOCIAL SERVICES,96.20 ,Passenger railways,Travel - Air/Rail/Road,SOUTHEASTERN WEB,Not applicable
01/08/16,EDUCATION AND SOCIAL SERVICES,12.10 ,Passenger railways,Travel - Air/Rail/Road,SOUTHEASTERN WEB,Not applicable
01/08/16,EDUCATION AND SOCIAL SERVICES,48.40 ,Passenger railways,Travel - Air/Rail/Road,SOUTHEASTERN WEB,Not applicable
01/08/16,EDUCATION AND SOCIAL SERVICES,12.10 ,Passenger railways,Travel - Air/Rail/Road,SOUTHEASTERN WEB,Not applicable
02/08/16,EDUCATION AND SOCIAL SERVICES,135.10 ,Passenger railways,Travel - Air/Rail/Road,SOUTHEASTERN WEB,Not applicable
02/08/16,EDUCATION AND SOCIAL SERVICES,32.90 ,Passenger railways,Travel - Air/Rail/Road,SOUTHEASTERN WEB,Not applicable
02/08/16,EDUCATION AND SOCIAL SERVICES,12.10 ,Passenger railways,Travel - Air/Rail/Road,SOUTHEASTERN WEB,Not applicable
04/08/16,EDUCATION AND SOCIAL SERVICES,7.50 ,Passenger railways,Travel - Air/Rail/Road,SOUTHEASTERN WEB,Not applicable
04/08/16,EDUCATION AND SOCIAL SERVICES,77.20 ,Passenger railways,Travel - Air/Rail/Road,SOUTHEASTERN WEB,Not applicable
04/08/16,EDUCATION AND SOCIAL SERVICES,77.20 ,Passenger railways,Travel - Air/Rail/Road,SOUTHEASTERN WEB,Not applicable
04/08/16,EDUCATION AND SOCIAL SERVICES,12.10 ,Passenger railways,Travel - Air/Rail/Road,SOUTHEASTERN WEB,Not applicable
12/08/16,EDUCATION AND SOCIAL SERVICES,38.60 ,Passenger railways,Travel - Air/Rail/Road,SOUTHEASTERN WEB,Not applicable
12/08/16,EDUCATION AND SOCIAL SERVICES,38.60 ,Passenger railways,Travel - Air/Rail/Road,SOUTHEASTERN WEB,Not applicable
12/08/16,EDUCATION AND SOCIAL SERVICES,172.20 ,Passenger railways,Travel - Air/Rail/Road,SOUTHEASTERN WEB,Not applicable
12/08/16,EDUCATION AND SOCIAL SERVICES,86.10 ,Passenger railways,Travel - Air/Rail/Road,SOUTHEASTERN WEB,Not applicable
18/08/16,EDUCATION AND SOCIAL SERVICES,12.10 ,Passenger railways,Travel - Air/Rail/Road,SOUTHEASTERN WEB,Not applicable
18/08/16,EDUCATION AND SOCIAL SERVICES,86.10 ,Passenger railways,Travel - Air/Rail/Road,SOUTHEASTERN WEB,Not applicable
18/08/16,EDUCATION AND SOCIAL SERVICES,79.10 ,Passenger railways,Travel - Air/Rail/Road,SOUTHEASTERN WEB,Not applicable
18/08/16,EDUCATION AND SOCIAL SERVICES,172.20 ,Passenger railways,Travel - Air/Rail/Road,SOUTHEASTERN WEB,Not applicable
25/08/16,EDUCATION AND SOCIAL SERVICES,53.10 ,Passenger railways,Travel - Air/Rail/Road,SOUTHEASTERN WEB,Not applicable
25/08/16,EDUCATION AND SOCIAL SERVICES,48.40 ,Passenger railways,Travel - Air/Rail/Road,SOUTHEASTERN WEB,Not applicable
25/08/16,EDUCATION AND SOCIAL SERVICES,53.10 ,Passenger railways,Travel - Air/Rail/Road,SOUTHEASTERN WEB,Not applicable
25/08/16,EDUCATION AND SOCIAL SERVICES,362.00 ,Passenger railways,Travel - Air/Rail/Road,SOUTHEASTERN WEB,Not applicable
07/09/16,EDUCATION AND SOCIAL SERVICES,-172.20 ,Passenger railways,Travel - Air/Rail/Road,SOUTHEASTERN WEB,Not applicable
19/09/16,EDUCATION AND SOCIAL SERVICES,13.70 ,Passenger railways,Travel - Air/Rail/Road,SOUTHEASTERN WEB,Not applicable
19/09/16,EDUCATION AND SOCIAL SERVICES,39.90 ,Passenger railways,Travel - Air/Rail/Road,SOUTHEASTERN WEB,Not applicable
19/09/16,EDUCATION AND SOCIAL SERVICES,94.70 ,Passenger railways,Travel - Air/Rail/Road,SOUTHERN RAILWAY WEB,Not applicable
19/09/16,EDUCATION AND SOCIAL SERVICES,194.00 ,Passenger railways,Travel - Air/Rail/Road,SOUTHEASTERN WEB,Not applicable
20/09/16,EDUCATION AND SOCIAL SERVICES,12.10 ,Passenger railways,Travel - Air/Rail/Road,SOUTHEASTERN WEB,Not applicable
20/09/16,EDUCATION AND SOCIAL SERVICES,172.20 ,Passenger railways,Travel - Air/Rail/Road,SOUTHEASTERN WEB,Not applicable
20/09/16,EDUCATION AND SOCIAL SERVICES,86.10 ,Passenger railways,Travel - Air/Rail/Road,SOUTHEASTERN WEB,Not applicable
29/09/16,EDUCATION AND SOCIAL SERVICES,86.10 ,Passenger railways,Travel - Air/Rail/Road,SOUTHERN RAILWAY WEB,Not applicable
29/09/16,EDUCATION AND SOCIAL SERVICES,321.00 ,Passenger railways,Travel - Air/Rail/Road,SOUTHEASTERN WEB,Not applicable
29/09/16,EDUCATION AND SOCIAL SERVICES,78.20 ,Passenger railways,Travel - Air/Rail/Road,SOUTHEASTERN WEB,Not applicable
29/09/16,EDUCATION AND SOCIAL SERVICES,46.00 ,Passenger railways,Travel - Air/Rail/Road,SOUTHEASTERN WEB,Not applicable
29/09/16,EDUCATION AND SOCIAL SERVICES,12.10 ,Passenger railways,Travel - Air/Rail/Road,SOUTHEASTERN WEB,Not applicable
04/07/16,EDUCATION AND SOCIAL SERVICES,20.00 ,Passenger railways,Travel - Air/Rail/Road,OYSTER BUS AUTOTOP,Not applicable
07/07/16,EDUCATION AND SOCIAL SERVICES,20.00 ,Passenger railways,Travel - Air/Rail/Road,OYSTER BUS AUTOTOP,Not applicable
07/07/16,EDUCATION AND SOCIAL SERVICES,20.00 ,Passenger railways,Travel - Air/Rail/Road,OYSTER AUTOTOPUP,Not applicable
11/07/16,EDUCATION AND SOCIAL SERVICES,20.00 ,Passenger railways,Travel - Air/Rail/Road,OYSTER BUS AUTOTOP,Not applicable
11/07/16,EDUCATION AND SOCIAL SERVICES,20.00 ,Passenger railways,Travel - Air/Rail/Road,OYSTER AUTOTOPUP,Not applicable
19/07/16,EDUCATION AND SOCIAL SERVICES,20.00 ,Passenger railways,Travel - Air/Rail/Road,OYSTER BUS AUTOTOP,Not applicable
21/07/16,EDUCATION AND SOCIAL SERVICES,20.00 ,Passenger railways,Travel - Air/Rail/Road,OYSTER BUS AUTOTOP,Not applicable
21/07/16,EDUCATION AND SOCIAL SERVICES,20.00 ,Passenger railways,Travel - Air/Rail/Road,OYSTER AUTOTOPUP,Not applicable
25/07/16,EDUCATION AND SOCIAL SERVICES,20.00 ,Passenger railways,Travel - Air/Rail/Road,OYSTER BUS AUTOTOP,Not applicable
26/07/16,EDUCATION AND SOCIAL SERVICES,20.00 ,Passenger railways,Travel - Air/Rail/Road,OYSTER BUS AUTOTOP,Not applicable
01/08/16,EDUCATION AND SOCIAL SERVICES,20.00 ,Passenger railways,Travel - Air/Rail/Road,OYSTER BUS AUTOTOP,Not applicable
04/08/16,EDUCATION AND SOCIAL SERVICES,20.00 ,Passenger railways,Travel - Air/Rail/Road,OYSTER BUS AUTOTOP,Not applicable
04/08/16,EDUCATION AND SOCIAL SERVICES,20.00 ,Passenger railways,Travel - Air/Rail/Road,OYSTER BUS AUTOTOP,Not applicable
09/08/16,EDUCATION AND SOCIAL SERVICES,490.00 ,Travelodge,Hotels and Accommodation,TRAVELODGE,Not applicable
15/08/16,EDUCATION AND SOCIAL SERVICES,20.00 ,Passenger railways,Travel - Air/Rail/Road,OYSTER AUTOTOPUP,Not applicable
16/08/16,EDUCATION AND SOCIAL SERVICES,66.00 ,Travelodge,Hotels and Accommodation,TRAVELODGE,Not applicable
19/08/16,EDUCATION AND SOCIAL SERVICES,258.00 ,Travelodge,Hotels and Accommodation,TRAVELODGE,Not applicable
23/08/16,EDUCATION AND SOCIAL SERVICES,322.00 ,Travelodge,Hotels and Accommodation,TRAVELODGE,Not applicable
25/08/16,EDUCATION AND SOCIAL SERVICES,20.00 ,Passenger railways,Travel - Air/Rail/Road,OYSTER BUS AUTOTOP,Not applicable
29/08/16,EDUCATION AND SOCIAL SERVICES,20.00 ,Passenger railways,Travel - Air/Rail/Road,OYSTER AUTOTOPUP,Not applicable
30/08/16,EDUCATION AND SOCIAL SERVICES,20.00 ,Passenger railways,Travel - Air/Rail/Road,OYSTER BUS AUTOTOP,Not applicable
06/09/16,EDUCATION AND SOCIAL SERVICES,20.00 ,Passenger railways,Travel - Air/Rail/Road,OYSTER BUS AUTOTOP,Not applicable
12/09/16,EDUCATION AND SOCIAL SERVICES,269.00 ,Travelodge,Hotels and Accommodation,TRAVELODGE,Not applicable
13/09/16,EDUCATION AND SOCIAL SERVICES,-198.00 ,Travelodge,Hotels and Accommodation,TRAVELODGE,Not applicable
16/09/16,EDUCATION AND SOCIAL SERVICES,20.00 ,Passenger railways,Travel - Air/Rail/Road,OYSTER AUTOTOPUP,Not applicable
27/09/16,EDUCATION AND SOCIAL SERVICES,20.00 ,Passenger railways,Travel - Air/Rail/Road,OYSTER AUTOTOPUP,Not applicable
30/09/16,EDUCATION AND SOCIAL SERVICES,20.00 ,Passenger railways,Travel - Air/Rail/Road,OYSTER BUS AUTOTOP,Not applicable
13/07/16,EDUCATION AND SOCIAL SERVICES,213.70 ,"Airlines, air carriers",Travel - Air/Rail/Road,FLYBE.COM 26740706351380,Not applicable
13/07/16,EDUCATION AND SOCIAL SERVICES,431.00 ,Premier Inn,Hotels and Accommodation,PREMIER INN,Not applicable
14/07/16,EDUCATION AND SOCIAL SERVICES,114.00 ,"Hotels, motels & resorts",Hotels and Accommodation,HOTEL PENZANCE LLP,Not applicable
14/07/16,EDUCATION AND SOCIAL SERVICES,348.50 ,Premier Inn,Hotels and Accommodation,PREMIER INN,Not applicable
18/07/16,EDUCATION AND SOCIAL SERVICES,1017.11 ,Emirates Airlines,Travel - Air/Rail/Road,EMIRATES AIRLINES (ABBR. EMIRATES),Not applicable
20/07/16,EDUCATION AND SOCIAL SERVICES,450.00 ,"Member clubs, sport, recreation & golf",Leisure Activities,ARSENAL FOOTBALL,Not applicable
10/08/16,EDUCATION AND SOCIAL SERVICES,124.00 ,Premier Inn,Hotels and Accommodation,PREMIER INN,Not applicable
10/08/16,EDUCATION AND SOCIAL SERVICES,48.40 ,Passenger railways,Travel - Air/Rail/Road,SOUTHEASTERN WEB,Not applicable
10/08/16,EDUCATION AND SOCIAL SERVICES,32.90 ,Passenger railways,Travel - Air/Rail/Road,SOUTHEASTERN WEB,Not applicable
10/08/16,EDUCATION AND SOCIAL SERVICES,67.00 ,Passenger railways,Travel - Air/Rail/Road,PREMIER INN,Not applicable
10/08/16,EDUCATION AND SOCIAL SERVICES,29.70 ,Passenger railways,Travel - Air/Rail/Road,SOUTHEASTERN WEB,Not applicable
11/08/16,EDUCATION AND SOCIAL SERVICES,46.10 ,Passenger railways,Travel - Air/Rail/Road,SOUTHEASTERN WEB,Not applicable
12/08/16,EDUCATION AND SOCIAL SERVICES,8.10 ,Passenger railways,Travel - Air/Rail/Road,SOUTHEASTERN WEB,Not applicable
12/08/16,EDUCATION AND SOCIAL SERVICES,17.20 ,Passenger railways,Travel - Air/Rail/Road,SOUTHEASTERN WEB,Not applicable
17/08/16,EDUCATION AND SOCIAL SERVICES,95.00 ,Restaurants,Restaurants and Bars,PREMIER INN 44534170,Not applicable
18/08/16,EDUCATION AND SOCIAL SERVICES,485.00 ,Travelodge,Hotels and Accommodation,TRAVELODGE,Not applicable
22/08/16,EDUCATION AND SOCIAL SERVICES,171.44 ,British Airways,Travel - Air/Rail/Road,BRITISH A,Not applicable
23/08/16,EDUCATION AND SOCIAL SERVICES,38.60 ,Passenger railways,Travel - Air/Rail/Road,SOUTHEASTERN WEB,Not applicable
23/08/16,EDUCATION AND SOCIAL SERVICES,38.60 ,Passenger railways,Travel - Air/Rail/Road,SOUTHEASTERN WEB,Not applicable
25/08/16,EDUCATION AND SOCIAL SERVICES,76.00 ,Passenger railways,Travel - Air/Rail/Road,TRAVELODGE,Not applicable
25/08/16,EDUCATION AND SOCIAL SERVICES,600.00 ,Passenger railways,Travel - Air/Rail/Road,TRAVELODGE,Not applicable
29/08/16,EDUCATION AND SOCIAL SERVICES,376.00 ,Passenger railways,Travel - Air/Rail/Road,PREMIER INN,Not applicable
31/08/16,EDUCATION AND SOCIAL SERVICES,178.00 ,Passenger railways,Travel - Air/Rail/Road,SOUTHEASTERN WEB,Not applicable
31/08/16,EDUCATION AND SOCIAL SERVICES,92.00 ,Hilton Hotels,Hotels and Accommodation,HILTON,Not applicable
01/09/16,EDUCATION AND SOCIAL SERVICES,267.00 ,Passenger railways,Travel - Air/Rail/Road,SOUTHEASTERN WEB,Not applicable
01/09/16,EDUCATION AND SOCIAL SERVICES,135.10 ,Passenger railways,Travel - Air/Rail/Road,SOUTHEASTERN WEB,Not applicable
01/09/16,EDUCATION AND SOCIAL SERVICES,45.20 ,Passenger railways,Travel - Air/Rail/Road,SOUTHEASTERN WEB,Not applicable
02/09/16,EDUCATION AND SOCIAL SERVICES,74.25 ,"Hotels, motels & resorts",Hotels and Accommodation,PARK INN BIRMINGHAM W,Not applicable
02/09/16,EDUCATION AND SOCIAL SERVICES,40.25 ,"Hotels, motels & resorts",Hotels and Accommodation,SEA LIFE CENTRE,Not applicable
07/09/16,EDUCATION AND SOCIAL SERVICES,724.00 ,"Hotels, motels & resorts",Hotels and Accommodation,TRAVELODGE,Not applicable
14/09/16,EDUCATION AND SOCIAL SERVICES,1375.00 ,"Hotels, motels & resorts",Hotels and Accommodation,GREYCROFT B & B,Not applicable
20/09/16,EDUCATION AND SOCIAL SERVICES,247.94 ,Aer Lingus,Travel - Air/Rail/Road,AER LINGUS,Not applicable
11/07/16,EDUCATION AND SOCIAL SERVICES,1226.24 ,Virgin Atlantic,Travel - Air/Rail/Road,VIRGIN ATLANTIC,Not applicable
01/08/16,EDUCATION AND SOCIAL SERVICES,244.00 ,Premier Inn,Hotels and Accommodation,PREMIER INN,Not applicable
01/08/16,EDUCATION AND SOCIAL SERVICES,45.00 ,Misc business services,Miscellaneous Industrial/Commercial Supplies,HOTEL PAID VIA EVIIVO,Not applicable
01/08/16,EDUCATION AND SOCIAL SERVICES,533.00 ,Premier Inn,Hotels and Accommodation,PREMIER INN,Not applicable
04/08/16,EDUCATION AND SOCIAL SERVICES,827.18 ,Travel agencies,Travel - Air/Rail/Road,PGL TRAVEL LIMITED,Not applicable
26/09/16,EDUCATION AND SOCIAL SERVICES,852.00 ,Premier Inn,Hotels and Accommodation,PREMIER INN,Not applicable
04/07/16,EDUCATION AND SOCIAL SERVICES,76.51 ,Travel agencies,Travel - Air/Rail/Road,HOTELS COM130743403262,Not applicable
05/07/16,EDUCATION AND SOCIAL SERVICES,96.80 ,Taxicabs & limousines,Travel - Air/Rail/Road,APL /STREETCA,Not applicable
06/07/16,EDUCATION AND SOCIAL SERVICES,17.20 ,Passenger railways,Travel - Air/Rail/Road,GRAND CENTRAL RAIL,Not applicable
07/07/16,EDUCATION AND SOCIAL SERVICES,20.00 ,Taxicabs & limousines,Travel - Air/Rail/Road,LTS TAXIS,Not applicable
11/07/16,EDUCATION AND SOCIAL SERVICES,63.50 ,Passenger railways,Travel - Air/Rail/Road,LONDON MIDLAND WEB,Not applicable
11/07/16,EDUCATION AND SOCIAL SERVICES,77.30 ,Passenger railways,Travel - Air/Rail/Road,VIRGINTRAINS.CO.UK,Not applicable
11/07/16,EDUCATION AND SOCIAL SERVICES,26.50 ,Taxicabs & limousines,Travel - Air/Rail/Road,STAFFORDTAXI,Not applicable
11/07/16,EDUCATION AND SOCIAL SERVICES,14.10 ,Passenger railways,Travel - Air/Rail/Road,STAGECOACH SW TRAINS W,Not applicable
11/07/16,EDUCATION AND SOCIAL SERVICES,49.40 ,Passenger railways,Travel - Air/Rail/Road,SOUTHERN RAILWAY WEB,Not applicable
11/07/16,EDUCATION AND SOCIAL SERVICES,104.10 ,Passenger railways,Travel - Air/Rail/Road,SOUTHERN RAILWAY WEB,Not applicable
13/07/16,EDUCATION AND SOCIAL SERVICES,113.55 ,Passenger railways,Travel - Air/Rail/Road,VIRGINTRAINS.CO.UK,Not applicable
13/07/16,EDUCATION AND SOCIAL SERVICES,40.00 ,Taxicabs & limousines,Travel - Air/Rail/Road,TAXIPAY TAXI FARE,Not applicable
13/07/16,EDUCATION AND SOCIAL SERVICES,30.00 ,Taxicabs & limousines,Travel - Air/Rail/Road,CALL A CAB,Not applicable
14/07/16,EDUCATION AND SOCIAL SERVICES,143.00 ,Passenger railways,Travel - Air/Rail/Road,VIRGINTRAINS.CO.UK,Not applicable
14/07/16,EDUCATION AND SOCIAL SERVICES,148.00 ,Passenger railways,Travel - Air/Rail/Road,VIRGINTRAINS.CO.UK,Not applicable
14/07/16,EDUCATION AND SOCIAL SERVICES,88.70 ,Passenger railways,Travel - Air/Rail/Road,VIRGINTRAINS.CO.UK,Not applicable
14/07/16,EDUCATION AND SOCIAL SERVICES,25.40 ,Passenger railways,Travel - Air/Rail/Road,VIRGINTRAINS.CO.UK,Not applicable
14/07/16,EDUCATION AND SOCIAL SERVICES,116.30 ,Passenger railways,Travel - Air/Rail/Road,VIRGINTRAINS.CO.UK,Not applicable
14/07/16,EDUCATION AND SOCIAL SERVICES,194.50 ,Passenger railways,Travel - Air/Rail/Road,VIRGINTRAINS.CO.UK,Not applicable
18/07/16,EDUCATION AND SOCIAL SERVICES,45.90 ,Passenger railways,Travel - Air/Rail/Road,GREATERANGLIA.CO.UK,Not applicable
18/07/16,EDUCATION AND SOCIAL SERVICES,48.90 ,Passenger railways,Travel - Air/Rail/Road,GREATERANGLIA.CO.UK,Not applicable
18/07/16,EDUCATION AND SOCIAL SERVICES,55.00 ,Taxicabs & limousines,Travel - Air/Rail/Road,NETWORK CARS,Not applicable
26/07/16,EDUCATION AND SOCIAL SERVICES,27.50 ,Taxicabs & limousines,Travel - Air/Rail/Road,TILBURY TAXIS LTD,Not applicable
26/07/16,EDUCATION AND SOCIAL SERVICES,217.65 ,Passenger railways,Travel - Air/Rail/Road,VIRGINTRAINS.CO.UK,Not applicable
29/07/16,EDUCATION AND SOCIAL SERVICES,59.40 ,Travel agencies,Travel - Air/Rail/Road,HOTELS COM131419856807,Not applicable
29/07/16,EDUCATION AND SOCIAL SERVICES,300.00 ,"Programming, data processing & system design",Computer Equipment & Services,SURVEYMONKEY,Not applicable
01/08/16,EDUCATION AND SOCIAL SERVICES,72.30 ,Passenger railways,Travel - Air/Rail/Road,VIRGINTRAINS.CO.UK,Not applicable
01/08/16,EDUCATION AND SOCIAL SERVICES,231.80 ,Passenger railways,Travel - Air/Rail/Road,VIRGINTRAINS.CO.UK,Not applicable
01/08/16,EDUCATION AND SOCIAL SERVICES,59.00 ,Travel agencies,Travel - Air/Rail/Road,HOTELS COM131442392928,Not applicable
02/08/16,EDUCATION AND SOCIAL SERVICES,56.50 ,Taxicabs & limousines,Travel - Air/Rail/Road,PP MAJAIDBENAR,Not applicable
08/08/16,EDUCATION AND SOCIAL SERVICES,203.80 ,Passenger railways,Travel - Air/Rail/Road,EASTMIDLANDSTRAINS,Not applicable
10/08/16,EDUCATION AND SOCIAL SERVICES,77.50 ,Taxicabs & limousines,Travel - Air/Rail/Road,CARLISLETAXIHIRECOUK,Not applicable
11/08/16,EDUCATION AND SOCIAL SERVICES,245.40 ,Passenger railways,Travel - Air/Rail/Road,GWR WEBSALES ECOM,Not applicable
12/08/16,EDUCATION AND SOCIAL SERVICES,15.70 ,Hotel Ibis,Hotels and Accommodation,HOTEL IBIS,Not applicable
15/08/16,EDUCATION AND SOCIAL SERVICES,128.05 ,Passenger railways,Travel - Air/Rail/Road,VIRGINTRAINSEC SERVCS,Not applicable
15/08/16,EDUCATION AND SOCIAL SERVICES,83.95 ,Passenger railways,Travel - Air/Rail/Road,VIRGINTRAINSEC SERVCS,Not applicable
15/08/16,EDUCATION AND SOCIAL SERVICES,52.35 ,Advertising services,Print and Advertising,WEB3RESOURCE.CO.UK,Not applicable
15/08/16,EDUCATION AND SOCIAL SERVICES,42.70 ,Advertising services,Print and Advertising,WEB 3 RESOURCE LTD,Not applicable
18/08/16,EDUCATION AND SOCIAL SERVICES,-52.35 ,Advertising services,Print and Advertising,WEB3RESOURCE.CO.UK,Not applicable
18/08/16,EDUCATION AND SOCIAL SERVICES,-42.70 ,Advertising services,Print and Advertising,WEB 3 RESOURCE LTD,Not applicable
26/08/16,EDUCATION AND SOCIAL SERVICES,12.10 ,Passenger railways,Travel - Air/Rail/Road,TL&GN RAILWAY WEB,Not applicable
31/08/16,EDUCATION AND SOCIAL SERVICES,35.70 ,Passenger railways,Travel - Air/Rail/Road,SOUTHEASTERN WEB,Not applicable
01/09/16,EDUCATION AND SOCIAL SERVICES,23.30 ,Passenger railways,Travel - Air/Rail/Road,SOUTHEASTERN WEB,Not applicable
05/09/16,EDUCATION AND SOCIAL SERVICES,113.30 ,Passenger railways,Travel - Air/Rail/Road,TRAINLINE.COM LTD,Not applicable
08/09/16,EDUCATION AND SOCIAL SERVICES,24.00 ,Taxicabs & limousines,Travel - Air/Rail/Road,SUSSEX 247 CARS,Not applicable
09/09/16,EDUCATION AND SOCIAL SERVICES,123.30 ,Passenger railways,Travel - Air/Rail/Road,VIRGINTRAINS.CO.UK,Not applicable
12/09/16,EDUCATION AND SOCIAL SERVICES,149.00 ,Passenger railways,Travel - Air/Rail/Road,SOUTHEASTERN WEB,Not applicable
15/09/16,EDUCATION AND SOCIAL SERVICES,10.60 ,Taxicabs & limousines,Travel - Air/Rail/Road,ACCESS CARS LTD,Not applicable
21/09/16,EDUCATION AND SOCIAL SERVICES,60.00 ,Taxicabs & limousines,Travel - Air/Rail/Road,EVEREST TAXIS,Not applicable
21/09/16,EDUCATION AND SOCIAL SERVICES,31.80 ,Taxicabs & limousines,Travel - Air/Rail/Road,ACCESS CARS LTD,Not applicable
22/09/16,EDUCATION AND SOCIAL SERVICES,52.20 ,Passenger railways,Travel - Air/Rail/Road,VIRGINTRAINSEC SERVCS,Not applicable
23/09/16,EDUCATION AND SOCIAL SERVICES,58.65 ,Passenger railways,Travel - Air/Rail/Road,VIRGINTRAINSEC SERVCS,Not applicable
26/09/16,EDUCATION AND SOCIAL SERVICES,127.00 ,Passenger railways,Travel - Air/Rail/Road,TRAINLINE.COM LTD,Not applicable
29/09/16,EDUCATION AND SOCIAL SERVICES,36.00 ,Taxicabs & limousines,Travel - Air/Rail/Road,PP ASIF KHAN,Not applicable
30/09/16,EDUCATION AND SOCIAL SERVICES,9.00 ,Passenger railways,Travel - Air/Rail/Road,TRAINLINE.COM LTD,Not applicable
19/07/16,EDUCATION AND SOCIAL SERVICES,26.40 ,Taxicabs & limousines,Travel - Air/Rail/Road,APL /StreetCa,Not applicable
20/07/16,EDUCATION AND SOCIAL SERVICES,31.10 ,Passenger railways,Travel - Air/Rail/Road,C2C ATOS WEBTIS,Not applicable
20/07/16,EDUCATION AND SOCIAL SERVICES,27.69 ,Taxicabs & limousines,Travel - Air/Rail/Road,TAXIPAY TAXI FARE,Not applicable
22/07/16,EDUCATION AND SOCIAL SERVICES,39.10 ,Passenger railways,Travel - Air/Rail/Road,VIRGINTRAINS.CO.UK,Not applicable
18/08/16,EDUCATION AND SOCIAL SERVICES,42.70 ,Advertising services,Print and Advertising,WEB 3 RESOURCE LTD,Not applicable
18/08/16,EDUCATION AND SOCIAL SERVICES,12.20 ,Passenger railways,Travel - Air/Rail/Road,THE CHILTERN RLYWY,Not applicable
19/08/16,EDUCATION AND SOCIAL SERVICES,-42.70 ,Advertising services,Print and Advertising,WEB 3 RESOURCE LTD,Not applicable
19/08/16,EDUCATION AND SOCIAL SERVICES,16.90 ,Taxicabs & limousines,Travel - Air/Rail/Road,DISCOUNT CABS LINCOLN,Not applicable
20/09/16,EDUCATION AND SOCIAL SERVICES,74.30 ,Passenger railways,Travel - Air/Rail/Road,VIRGINTRAINS.CO.UK,Not applicable
13/07/16,FINANCE,4809.00 ,Payment of Court Fees,Statutory Bodies,HMCOURTS-SERVICE.G,Not applicable
22/07/16,FINANCE,3.00 ,Payment of Court Fees,Statutory Bodies,HMCOURTS-SERVICE.G,Not applicable
11/08/16,FINANCE,6141.00 ,Payment of Court Fees,Statutory Bodies,HMCOURTS-SERVICE.G,Not applicable
14/09/16,FINANCE,5790.00 ,Payment of Court Fees,Statutory Bodies,HMCOURTS-SERVICE.G,Not applicable
28/06/16,FINANCE,-16.81 ,Household appliance stores,General Retail and Wholesale,PSD FRAUD TEMP. CREDIT,Not applicable
28/06/16,FINANCE,-16.81 ,Household appliance stores,General Retail and Wholesale,PSD - FRAUD PERM. CREDIT,Not applicable
30/06/16,FINANCE,20.00 ,Passenger railways,Travel - Air/Rail/Road,OYSTER AUTOTOPUP,Not applicable
30/06/16,FINANCE,20.00 ,Passenger railways,Travel - Air/Rail/Road,OYSTER AUTOTOPUP,Not applicable
01/07/16,FINANCE,20.00 ,Passenger railways,Travel - Air/Rail/Road,OYSTER BUS AUTOTOP,Not applicable
02/07/16,FINANCE,20.00 ,Passenger railways,Travel - Air/Rail/Road,OYSTER BUS AUTOTOP,Not applicable
02/07/16,FINANCE,20.00 ,Passenger railways,Travel - Air/Rail/Road,OYSTER BUS AUTOTOP,Not applicable
03/07/16,FINANCE,20.00 ,Passenger railways,Travel - Air/Rail/Road,OYSTER BUS AUTOTOP,Not applicable
07/07/16,FINANCE,20.00 ,Passenger railways,Travel - Air/Rail/Road,OYSTER AUTOTOPUP,Not applicable
07/07/16,FINANCE,20.00 ,Passenger railways,Travel - Air/Rail/Road,OYSTER AUTOTOPUP,Not applicable
07/07/16,FINANCE,20.00 ,Passenger railways,Travel - Air/Rail/Road,OYSTER AUTOTOPUP,Not applicable
08/07/16,FINANCE,322.00 ,Passenger railways,Travel - Air/Rail/Road,EUROSTAR INTERNET,Not applicable
08/07/16,FINANCE,20.00 ,Passenger railways,Travel - Air/Rail/Road,OYSTER AUTOTOPUP,Not applicable
09/07/16,FINANCE,-581.00 ,Passenger railways,Travel - Air/Rail/Road,PSD FRAUD TEMP. CREDIT,Not applicable
09/07/16,FINANCE,-581.00 ,Passenger railways,Travel - Air/Rail/Road,PSD - FRAUD PERM. CREDIT,Not applicable
09/07/16,FINANCE,581.00 ,Passenger railways,Travel - Air/Rail/Road,EUROSTAR INTERNET,Not applicable
09/07/16,FINANCE,20.00 ,Passenger railways,Travel - Air/Rail/Road,OYSTER AUTOTOPUP,Not applicable
09/07/16,FINANCE,20.00 ,Passenger railways,Travel - Air/Rail/Road,OYSTER BUS AUTOTOP,Not applicable
10/07/16,FINANCE,20.00 ,Passenger railways,Travel - Air/Rail/Road,OYSTER BUS AUTOTOP,Not applicable
11/07/16,FINANCE,-322.00 ,Passenger railways,Travel - Air/Rail/Road,EUROSTAR INTERNET,Not applicable
11/07/16,FINANCE,327.00 ,"Hotels, motels & resorts",Hotels and Accommodation,JURYS MANCHESTER I,Not applicable
13/07/16,FINANCE,20.00 ,Passenger railways,Travel - Air/Rail/Road,OYSTER BUS AUTOTOP,Not applicable
16/07/16,FINANCE,20.00 ,Passenger railways,Travel - Air/Rail/Road,OYSTER BUS AUTOTOP,Not applicable
21/07/16,FINANCE,20.00 ,Passenger railways,Travel - Air/Rail/Road,OYSTER AUTOTOPUP,Not applicable
21/07/16,FINANCE,20.00 ,Passenger railways,Travel - Air/Rail/Road,OYSTER BUS AUTOTOP,Not applicable
23/07/16,FINANCE,20.00 ,Passenger railways,Travel - Air/Rail/Road,OYSTER AUTOTOPUP,Not applicable
08/08/16,FINANCE,16.81 ,Household appliance stores,General Retail and Wholesale,DISPUTE REFUND REVERSAL,Not applicable
08/08/16,FINANCE,581.00 ,Passenger railways,Travel - Air/Rail/Road,DISPUTE REFUND REVERSAL,Not applicable
15/07/16,FINANCE,122.98 ,Book stores,Books and Periodicals,AMAZON UK MARKETPLACE,Not applicable
19/07/16,FINANCE,235.00 ,Membership organisations,Clubs/Associations/Organisations,WWW.CFAUK.ORG,Not applicable
27/07/16,FINANCE,17.74 ,Miscellaneous retail,General Retail and Wholesale,AMAZON UK RETAIL AMAZO,Not applicable
28/07/16,FINANCE,27.65 ,Direct sales companies,Mail Order / Direct Selling,AMAZON EU,Not applicable
28/07/16,FINANCE,169.99 ,Book stores,Books and Periodicals,AMAZON UK MARKETPLACE,Not applicable
29/07/16,FINANCE,20.00 ,Passenger railways,Travel - Air/Rail/Road,OYSTER AUTOTOPUP,Not applicable
29/07/16,FINANCE,20.00 ,Passenger railways,Travel - Air/Rail/Road,OYSTER AUTOTOPUP,Not applicable
29/07/16,FINANCE,41.32 ,Miscellaneous retail,General Retail and Wholesale,AMAZON UK RETAIL AMAZO,Not applicable
29/07/16,FINANCE,20.00 ,Passenger railways,Travel - Air/Rail/Road,OYSTER AUTOTOPUP,Not applicable
08/08/16,FINANCE,20.00 ,Passenger railways,Travel - Air/Rail/Road,OYSTER BUS AUTOTOP,Not applicable
08/08/16,FINANCE,20.00 ,Passenger railways,Travel - Air/Rail/Road,OYSTER BUS AUTOTOP,Not applicable
11/08/16,FINANCE,20.00 ,Passenger railways,Travel - Air/Rail/Road,OYSTER BUS AUTOTOP,Not applicable
15/08/16,FINANCE,20.00 ,Passenger railways,Travel - Air/Rail/Road,OYSTER AUTOTOPUP,Not applicable
15/08/16,FINANCE,20.00 ,Passenger railways,Travel - Air/Rail/Road,OYSTER AUTOTOPUP,Not applicable
18/08/16,FINANCE,20.00 ,Passenger railways,Travel - Air/Rail/Road,OYSTER BUS AUTOTOP,Not applicable
22/08/16,FINANCE,20.00 ,Passenger railways,Travel - Air/Rail/Road,OYSTER BUS AUTOTOP,Not applicable
22/08/16,FINANCE,20.00 ,Passenger railways,Travel - Air/Rail/Road,OYSTER AUTOTOPUP,Not applicable
29/08/16,FINANCE,20.00 ,Passenger railways,Travel - Air/Rail/Road,OYSTER BUS AUTOTOP,Not applicable
29/08/16,FINANCE,20.00 ,Passenger railways,Travel - Air/Rail/Road,OYSTER AUTOTOPUP,Not applicable
08/09/16,FINANCE,20.00 ,Passenger railways,Travel - Air/Rail/Road,OYSTER BUS AUTOTOP,Not applicable
09/09/16,FINANCE,20.00 ,Passenger railways,Travel - Air/Rail/Road,OYSTER AUTOTOPUP,Not applicable
09/09/16,FINANCE,20.00 ,Passenger railways,Travel - Air/Rail/Road,OYSTER AUTOTOPUP,Not applicable
09/09/16,FINANCE,20.00 ,Passenger railways,Travel - Air/Rail/Road,OYSTER AUTOTOPUP,Not applicable
12/09/16,FINANCE,20.00 ,Passenger railways,Travel - Air/Rail/Road,OYSTER AUTOTOPUP,Not applicable
12/09/16,FINANCE,20.00 ,Passenger railways,Travel - Air/Rail/Road,OYSTER BUS AUTOTOP,Not applicable
12/09/16,FINANCE,20.00 ,Passenger railways,Travel - Air/Rail/Road,OYSTER BUS AUTOTOP,Not applicable
15/09/16,FINANCE,20.00 ,Passenger railways,Travel - Air/Rail/Road,OYSTER AUTOTOPUP,Not applicable
15/09/16,FINANCE,20.00 ,Passenger railways,Travel - Air/Rail/Road,OYSTER AUTOTOPUP,Not applicable
16/09/16,FINANCE,20.00 ,Passenger railways,Travel - Air/Rail/Road,OYSTER BUS AUTOTOP,Not applicable
16/09/16,FINANCE,20.00 ,Passenger railways,Travel - Air/Rail/Road,OYSTER BUS AUTOTOP,Not applicable
19/09/16,FINANCE,20.00 ,Passenger railways,Travel - Air/Rail/Road,OYSTER BUS AUTOTOP,Not applicable
23/09/16,FINANCE,20.00 ,Passenger railways,Travel - Air/Rail/Road,OYSTER AUTOTOPUP,Not applicable
26/09/16,FINANCE,20.00 ,Passenger railways,Travel - Air/Rail/Road,OYSTER AUTOTOPUP,Not applicable
26/09/16,FINANCE,20.00 ,Passenger railways,Travel - Air/Rail/Road,OYSTER AUTOTOPUP,Not applicable
26/09/16,FINANCE,20.00 ,Passenger railways,Travel - Air/Rail/Road,OYSTER BUS AUTOTOP,Not applicable
26/09/16,FINANCE,20.00 ,Passenger railways,Travel - Air/Rail/Road,OYSTER AUTOTOPUP,Not applicable
26/09/16,FINANCE,20.00 ,Passenger railways,Travel - Air/Rail/Road,OYSTER AUTOTOPUP,Not applicable
30/09/16,FINANCE,20.00 ,Passenger railways,Travel - Air/Rail/Road,OYSTER AUTOTOPUP,Not applicable
30/09/16,FINANCE,20.00 ,Passenger railways,Travel - Air/Rail/Road,OYSTER BUS AUTOTOP,Not applicable
01/07/16,HOUSING AND COMMUNITY SERVICES,56.05 ,Emergency Accommodation,Hotels and Accommodation,TRAVELODGE,Not applicable
01/07/16,HOUSING AND COMMUNITY SERVICES,56.05 ,Emergency Accommodation,Hotels and Accommodation,TRAVELODGE,Not applicable
04/07/16,HOUSING AND COMMUNITY SERVICES,176.70 ,Emergency Accommodation,Hotels and Accommodation,TRAVELODGE,Not applicable
04/07/16,HOUSING AND COMMUNITY SERVICES,176.70 ,Emergency Accommodation,Hotels and Accommodation,TRAVELODGE,Not applicable
13/07/16,HOUSING AND COMMUNITY SERVICES,103.55 ,Emergency Accommodation,Hotels and Accommodation,TRAVELODGE,Not applicable
13/07/16,HOUSING AND COMMUNITY SERVICES,132.05 ,Emergency Accommodation,Hotels and Accommodation,TRAVELODGE,Not applicable
14/07/16,HOUSING AND COMMUNITY SERVICES,132.05 ,Emergency Accommodation,Hotels and Accommodation,TRAVELODGE,Not applicable
14/07/16,HOUSING AND COMMUNITY SERVICES,264.10 ,Emergency Accommodation,Hotels and Accommodation,TRAVELODGE,Not applicable
18/07/16,HOUSING AND COMMUNITY SERVICES,235.60 ,Emergency Accommodation,Hotels and Accommodation,TRAVELODGE,Not applicable
25/07/16,HOUSING AND COMMUNITY SERVICES,142.50 ,Emergency Accommodation,Hotels and Accommodation,TRAVELODGE,Not applicable
28/07/16,HOUSING AND COMMUNITY SERVICES,76.95 ,Emergency Accommodation,Hotels and Accommodation,TRAVELODGE,Not applicable
28/07/16,HOUSING AND COMMUNITY SERVICES,76.95 ,Emergency Accommodation,Hotels and Accommodation,TRAVELODGE,Not applicable
28/07/16,HOUSING AND COMMUNITY SERVICES,153.90 ,Emergency Accommodation,Hotels and Accommodation,TRAVELODGE,Not applicable
28/07/16,HOUSING AND COMMUNITY SERVICES,76.95 ,Emergency Accommodation,Hotels and Accommodation,TRAVELODGE,Not applicable
01/09/16,HOUSING AND COMMUNITY SERVICES,76.95 ,Emergency Accommodation,Hotels and Accommodation,TRAVELODGE,Not applicable
01/09/16,HOUSING AND COMMUNITY SERVICES,76.95 ,Emergency Accommodation,Hotels and Accommodation,TRAVELODGE,Not applicable
01/09/16,HOUSING AND COMMUNITY SERVICES,76.95 ,Emergency Accommodation,Hotels and Accommodation,TRAVELODGE,Not applicable
01/09/16,HOUSING AND COMMUNITY SERVICES,76.95 ,Emergency Accommodation,Hotels and Accommodation,TRAVELODGE,Not applicable
02/09/16,HOUSING AND COMMUNITY SERVICES,50.35 ,Emergency Accommodation,Hotels and Accommodation,TRAVELODGE,Not applicable
07/09/16,HOUSING AND COMMUNITY SERVICES,82.65 ,Emergency Accommodation,Hotels and Accommodation,TRAVELODGE,Not applicable
07/09/16,HOUSING AND COMMUNITY SERVICES,82.65 ,Emergency Accommodation,Hotels and Accommodation,TRAVELODGE,Not applicable
14/09/16,HOUSING AND COMMUNITY SERVICES,99.75 ,Emergency Accommodation,Hotels and Accommodation,TRAVELODGE,Not applicable
14/09/16,HOUSING AND COMMUNITY SERVICES,99.75 ,Emergency Accommodation,Hotels and Accommodation,TRAVELODGE,Not applicable
15/09/16,HOUSING AND COMMUNITY SERVICES,75.05 ,Emergency Accommodation,Hotels and Accommodation,TRAVELODGE,Not applicable
15/09/16,HOUSING AND COMMUNITY SERVICES,75.05 ,Emergency Accommodation,Hotels and Accommodation,TRAVELODGE,Not applicable
15/09/16,HOUSING AND COMMUNITY SERVICES,113.05 ,Emergency Accommodation,Hotels and Accommodation,TRAVELODGE,Not applicable
15/09/16,HOUSING AND COMMUNITY SERVICES,75.05 ,Emergency Accommodation,Hotels and Accommodation,TRAVELODGE,Not applicable
01/07/16,HOUSING AND COMMUNITY SERVICES,513.00 ,Emergency Accommodation,Hotels and Accommodation,TRAVELODGE,Not applicable
04/07/16,HOUSING AND COMMUNITY SERVICES,82.65 ,Emergency Accommodation,Hotels and Accommodation,TRAVELODGE,Not applicable
04/07/16,HOUSING AND COMMUNITY SERVICES,-162.45 ,Emergency Accommodation,Hotels and Accommodation,TRAVELODGE,Not applicable
04/07/16,HOUSING AND COMMUNITY SERVICES,637.45 ,Emergency Accommodation,Hotels and Accommodation,TRAVELODGE,Not applicable
04/07/16,HOUSING AND COMMUNITY SERVICES,7.12 ,Government services,Statutory Bodies,LAMBETH INTERNET PAYM,Not applicable
04/07/16,HOUSING AND COMMUNITY SERVICES,50.35 ,Emergency Accommodation,Hotels and Accommodation,TRAVELODGE,Not applicable
06/07/16,HOUSING AND COMMUNITY SERVICES,441.75 ,Emergency Accommodation,Hotels and Accommodation,TRAVELODGE,Not applicable
07/07/16,HOUSING AND COMMUNITY SERVICES,487.35 ,Emergency Accommodation,Hotels and Accommodation,TRAVELODGE,Not applicable
12/07/16,HOUSING AND COMMUNITY SERVICES,-94.05 ,Emergency Accommodation,Hotels and Accommodation,TRAVELODGE,Not applicable
12/07/16,HOUSING AND COMMUNITY SERVICES,828.40 ,Emergency Accommodation,Hotels and Accommodation,TRAVELODGE,Not applicable
13/07/16,HOUSING AND COMMUNITY SERVICES,-342.00 ,Emergency Accommodation,Hotels and Accommodation,TRAVELODGE,Not applicable
13/07/16,HOUSING AND COMMUNITY SERVICES,702.05 ,Emergency Accommodation,Hotels and Accommodation,TRAVELODGE,Not applicable
20/07/16,HOUSING AND COMMUNITY SERVICES,418.00 ,Emergency Accommodation,Hotels and Accommodation,TRAVELODGE,Not applicable
20/07/16,HOUSING AND COMMUNITY SERVICES,173.85 ,Emergency Accommodation,Hotels and Accommodation,TRAVELODGE,Not applicable
22/07/16,HOUSING AND COMMUNITY SERVICES,441.75 ,Emergency Accommodation,Hotels and Accommodation,TRAVELODGE,Not applicable
28/07/16,HOUSING AND COMMUNITY SERVICES,364.80 ,Emergency Accommodation,Hotels and Accommodation,TRAVELODGE,Not applicable
03/08/16,HOUSING AND COMMUNITY SERVICES,350.55 ,Emergency Accommodation,Hotels and Accommodation,TRAVELODGE,Not applicable
05/08/16,HOUSING AND COMMUNITY SERVICES,20.00 ,Passenger railways,Travel - Air/Rail/Road,OYSTER RENEW WEB,Not applicable
09/08/16,HOUSING AND COMMUNITY SERVICES,257.45 ,Emergency Accommodation,Hotels and Accommodation,TRAVELODGE,Not applicable
11/08/16,HOUSING AND COMMUNITY SERVICES,11.00 ,Colleges & universities,Training and Educational,WESTSUSSEX.GOV.UK,Not applicable
17/08/16,HOUSING AND COMMUNITY SERVICES,197.60 ,Emergency Accommodation,Hotels and Accommodation,TRAVELODGE,Not applicable
23/08/16,HOUSING AND COMMUNITY SERVICES,75.38 ,Passenger railways,Travel - Air/Rail/Road,TRAINLINE,Not applicable
13/09/16,HOUSING AND COMMUNITY SERVICES,63.65 ,Passenger railways,Travel - Air/Rail/Road,TRAINLINE,Not applicable
19/09/16,HOUSING AND COMMUNITY SERVICES,2814.90 ,Emergency Accommodation,Hotels and Accommodation,TRAVELODGE,Not applicable
19/09/16,HOUSING AND COMMUNITY SERVICES,20.00 ,Passenger railways,Travel - Air/Rail/Road,OYSTER AUTOTOPUP,Not applicable
20/09/16,HOUSING AND COMMUNITY SERVICES,-1397.45 ,Emergency Accommodation,Hotels and Accommodation,TRAVELODGE,Not applicable
20/09/16,HOUSING AND COMMUNITY SERVICES,-1417.45 ,Emergency Accommodation,Hotels and Accommodation,TRAVELODGE,Not applicable
21/09/16,HOUSING AND COMMUNITY SERVICES,107.61 ,Passenger railways,Travel - Air/Rail/Road,TRAINLINE,Not applicable
22/09/16,HOUSING AND COMMUNITY SERVICES,15.00 ,Passenger railways,Travel - Air/Rail/Road,OYSTER ISSUE WEB,Not applicable
22/09/16,HOUSING AND COMMUNITY SERVICES,15.00 ,Passenger railways,Travel - Air/Rail/Road,OYSTER ISSUE WEB,Not applicable
22/09/16,HOUSING AND COMMUNITY SERVICES,15.00 ,Passenger railways,Travel - Air/Rail/Road,OYSTER ISSUE WEB,Not applicable
26/09/16,HOUSING AND COMMUNITY SERVICES,20.00 ,Passenger railways,Travel - Air/Rail/Road,OYSTER BUS AUTOTOP,Not applicable
27/09/16,HOUSING AND COMMUNITY SERVICES,15.00 ,Passenger railways,Travel - Air/Rail/Road,OYSTER ISSUE WEB,Not applicable
27/09/16,HOUSING AND COMMUNITY SERVICES,15.00 ,Passenger railways,Travel - Air/Rail/Road,OYSTER ISSUE WEB,Not applicable
27/09/16,HOUSING AND COMMUNITY SERVICES,15.00 ,Passenger railways,Travel - Air/Rail/Road,OYSTER ISSUE WEB,Not applicable
27/09/16,HOUSING AND COMMUNITY SERVICES,15.00 ,Passenger railways,Travel - Air/Rail/Road,OYSTER ISSUE WEB,Not applicable
27/09/16,HOUSING AND COMMUNITY SERVICES,15.00 ,Passenger railways,Travel - Air/Rail/Road,OYSTER ISSUE WEB,Not applicable
27/09/16,HOUSING AND COMMUNITY SERVICES,15.00 ,Passenger railways,Travel - Air/Rail/Road,OYSTER ISSUE WEB,Not applicable
27/09/16,HOUSING AND COMMUNITY SERVICES,15.00 ,Passenger railways,Travel - Air/Rail/Road,OYSTER ISSUE WEB,Not applicable
27/09/16,HOUSING AND COMMUNITY SERVICES,15.00 ,Passenger railways,Travel - Air/Rail/Road,OYSTER ISSUE WEB,Not applicable
27/09/16,HOUSING AND COMMUNITY SERVICES,15.00 ,Passenger railways,Travel - Air/Rail/Road,OYSTER ISSUE WEB,Not applicable
01/07/16,HOUSING AND COMMUNITY SERVICES,20.00 ,Passenger railways,Travel - Air/Rail/Road,OYSTER BUS AUTOTOP,Not applicable
04/07/16,HOUSING AND COMMUNITY SERVICES,20.00 ,Passenger railways,Travel - Air/Rail/Road,OYSTER AUTOTOPUP,Not applicable
04/07/16,HOUSING AND COMMUNITY SERVICES,20.00 ,Passenger railways,Travel - Air/Rail/Road,OYSTER AUTOTOPUP,Not applicable
04/07/16,HOUSING AND COMMUNITY SERVICES,20.00 ,Passenger railways,Travel - Air/Rail/Road,OYSTER BUS AUTOTOP,Not applicable
04/07/16,HOUSING AND COMMUNITY SERVICES,20.00 ,Passenger railways,Travel - Air/Rail/Road,OYSTER BUS AUTOTOP,Not applicable
04/07/16,HOUSING AND COMMUNITY SERVICES,20.00 ,Passenger railways,Travel - Air/Rail/Road,OYSTER BUS AUTOTOP,Not applicable
04/07/16,HOUSING AND COMMUNITY SERVICES,20.00 ,Passenger railways,Travel - Air/Rail/Road,OYSTER BUS AUTOTOP,Not applicable
04/07/16,HOUSING AND COMMUNITY SERVICES,20.00 ,Passenger railways,Travel - Air/Rail/Road,OYSTER BUS AUTOTOP,Not applicable
04/07/16,HOUSING AND COMMUNITY SERVICES,20.00 ,Passenger railways,Travel - Air/Rail/Road,OYSTER BUS AUTOTOP,Not applicable
05/07/16,HOUSING AND COMMUNITY SERVICES,20.00 ,Passenger railways,Travel - Air/Rail/Road,OYSTER BUS AUTOSET,Not applicable
06/07/16,HOUSING AND COMMUNITY SERVICES,20.00 ,Passenger railways,Travel - Air/Rail/Road,OYSTER BUS AUTOTOP,Not applicable
07/07/16,HOUSING AND COMMUNITY SERVICES,20.00 ,Passenger railways,Travel - Air/Rail/Road,OYSTER AUTOTOPUP,Not applicable
07/07/16,HOUSING AND COMMUNITY SERVICES,20.00 ,Passenger railways,Travel - Air/Rail/Road,OYSTER AUTOTOPUP,Not applicable
08/07/16,HOUSING AND COMMUNITY SERVICES,20.00 ,Passenger railways,Travel - Air/Rail/Road,OYSTER AUTOTOPUP,Not applicable
08/07/16,HOUSING AND COMMUNITY SERVICES,20.00 ,Passenger railways,Travel - Air/Rail/Road,OYSTER AUTOTOPUP,Not applicable
11/07/16,HOUSING AND COMMUNITY SERVICES,20.00 ,Passenger railways,Travel - Air/Rail/Road,OYSTER AUTOTOPUP,Not applicable
11/07/16,HOUSING AND COMMUNITY SERVICES,20.00 ,Passenger railways,Travel - Air/Rail/Road,OYSTER BUS AUTOTOP,Not applicable
11/07/16,HOUSING AND COMMUNITY SERVICES,20.00 ,Passenger railways,Travel - Air/Rail/Road,OYSTER BUS AUTOTOP,Not applicable
11/07/16,HOUSING AND COMMUNITY SERVICES,20.00 ,Passenger railways,Travel - Air/Rail/Road,OYSTER BUS AUTOTOP,Not applicable
11/07/16,HOUSING AND COMMUNITY SERVICES,20.00 ,Passenger railways,Travel - Air/Rail/Road,OYSTER AUTOTOPUP,Not applicable
11/07/16,HOUSING AND COMMUNITY SERVICES,20.00 ,Passenger railways,Travel - Air/Rail/Road,OYSTER AUTOTOPUP,Not applicable
11/07/16,HOUSING AND COMMUNITY SERVICES,20.00 ,Passenger railways,Travel - Air/Rail/Road,OYSTER BUS AUTOTOP,Not applicable
11/07/16,HOUSING AND COMMUNITY SERVICES,20.00 ,Passenger railways,Travel - Air/Rail/Road,OYSTER BUS AUTOTOP,Not applicable
12/07/16,HOUSING AND COMMUNITY SERVICES,20.00 ,Passenger railways,Travel - Air/Rail/Road,OYSTER BUS AUTOTOP,Not applicable
12/07/16,HOUSING AND COMMUNITY SERVICES,20.00 ,Passenger railways,Travel - Air/Rail/Road,OYSTER BUS AUTOTOP,Not applicable
12/07/16,HOUSING AND COMMUNITY SERVICES,76.00 ,Toll and bridge fees,Travel - Air/Rail/Road,GOV.UK/DART-CHARGE,Not applicable
14/07/16,HOUSING AND COMMUNITY SERVICES,20.00 ,Passenger railways,Travel - Air/Rail/Road,OYSTER AUTOTOPUP,Not applicable
14/07/16,HOUSING AND COMMUNITY SERVICES,20.00 ,Passenger railways,Travel - Air/Rail/Road,OYSTER AUTOTOPUP,Not applicable
14/07/16,HOUSING AND COMMUNITY SERVICES,20.00 ,Passenger railways,Travel - Air/Rail/Road,OYSTER BUS AUTOTOP,Not applicable
14/07/16,HOUSING AND COMMUNITY SERVICES,20.00 ,Passenger railways,Travel - Air/Rail/Road,OYSTER AUTOTOPUP,Not applicable
18/07/16,HOUSING AND COMMUNITY SERVICES,20.00 ,Passenger railways,Travel - Air/Rail/Road,OYSTER BUS AUTOTOP,Not applicable
18/07/16,HOUSING AND COMMUNITY SERVICES,20.00 ,Passenger railways,Travel - Air/Rail/Road,OYSTER AUTOTOPUP,Not applicable
18/07/16,HOUSING AND COMMUNITY SERVICES,20.00 ,Passenger railways,Travel - Air/Rail/Road,OYSTER AUTOTOPUP,Not applicable
18/07/16,HOUSING AND COMMUNITY SERVICES,20.00 ,Passenger railways,Travel - Air/Rail/Road,OYSTER AUTOTOPUP,Not applicable
18/07/16,HOUSING AND COMMUNITY SERVICES,20.00 ,Passenger railways,Travel - Air/Rail/Road,OYSTER AUTOTOPUP,Not applicable
18/07/16,HOUSING AND COMMUNITY SERVICES,20.00 ,Passenger railways,Travel - Air/Rail/Road,OYSTER BUS AUTOTOP,Not applicable
18/07/16,HOUSING AND COMMUNITY SERVICES,20.00 ,Passenger railways,Travel - Air/Rail/Road,OYSTER AUTOTOPUP,Not applicable
18/07/16,HOUSING AND COMMUNITY SERVICES,20.00 ,Passenger railways,Travel - Air/Rail/Road,OYSTER BUS AUTOTOP,Not applicable
18/07/16,HOUSING AND COMMUNITY SERVICES,20.00 ,Passenger railways,Travel - Air/Rail/Road,OYSTER AUTOTOPUP,Not applicable
18/07/16,HOUSING AND COMMUNITY SERVICES,20.00 ,Passenger railways,Travel - Air/Rail/Road,OYSTER BUS AUTOTOP,Not applicable
18/07/16,HOUSING AND COMMUNITY SERVICES,20.00 ,Passenger railways,Travel - Air/Rail/Road,OYSTER AUTOTOPUP,Not applicable
19/07/16,HOUSING AND COMMUNITY SERVICES,20.00 ,Passenger railways,Travel - Air/Rail/Road,OYSTER AUTOSETTLE,Not applicable
19/07/16,HOUSING AND COMMUNITY SERVICES,20.00 ,Passenger railways,Travel - Air/Rail/Road,OYSTER BUS AUTOSET,Not applicable
19/07/16,HOUSING AND COMMUNITY SERVICES,20.00 ,Passenger railways,Travel - Air/Rail/Road,OYSTER BUS AUTOTOP,Not applicable
21/07/16,HOUSING AND COMMUNITY SERVICES,184.00 ,Government services,Statutory Bodies,EA SERR SIM,Not applicable
21/07/16,HOUSING AND COMMUNITY SERVICES,20.00 ,Passenger railways,Travel - Air/Rail/Road,OYSTER BUS AUTOTOP,Not applicable
21/07/16,HOUSING AND COMMUNITY SERVICES,20.00 ,Passenger railways,Travel - Air/Rail/Road,OYSTER AUTOTOPUP,Not applicable
22/07/16,HOUSING AND COMMUNITY SERVICES,20.00 ,Passenger railways,Travel - Air/Rail/Road,OYSTER AUTOTOPUP,Not applicable
22/07/16,HOUSING AND COMMUNITY SERVICES,20.00 ,Passenger railways,Travel - Air/Rail/Road,OYSTER BUS AUTOTOP,Not applicable
22/07/16,HOUSING AND COMMUNITY SERVICES,20.00 ,Passenger railways,Travel - Air/Rail/Road,OYSTER BUS AUTOTOP,Not applicable
25/07/16,HOUSING AND COMMUNITY SERVICES,20.00 ,Passenger railways,Travel - Air/Rail/Road,OYSTER AUTOTOPUP,Not applicable
25/07/16,HOUSING AND COMMUNITY SERVICES,20.00 ,Passenger railways,Travel - Air/Rail/Road,OYSTER BUS AUTOTOP,Not applicable
25/07/16,HOUSING AND COMMUNITY SERVICES,20.00 ,Passenger railways,Travel - Air/Rail/Road,OYSTER BUS AUTOTOP,Not applicable
25/07/16,HOUSING AND COMMUNITY SERVICES,20.00 ,Passenger railways,Travel - Air/Rail/Road,OYSTER BUS AUTOTOP,Not applicable
25/07/16,HOUSING AND COMMUNITY SERVICES,20.00 ,Passenger railways,Travel - Air/Rail/Road,OYSTER BUS AUTOTOP,Not applicable
25/07/16,HOUSING AND COMMUNITY SERVICES,20.00 ,Passenger railways,Travel - Air/Rail/Road,OYSTER AUTOTOPUP,Not applicable
25/07/16,HOUSING AND COMMUNITY SERVICES,20.00 ,Passenger railways,Travel - Air/Rail/Road,OYSTER BUS AUTOTOP,Not applicable
25/07/16,HOUSING AND COMMUNITY SERVICES,20.00 ,Passenger railways,Travel - Air/Rail/Road,OYSTER BUS AUTOTOP,Not applicable
25/07/16,HOUSING AND COMMUNITY SERVICES,20.00 ,Passenger railways,Travel - Air/Rail/Road,OYSTER AUTOTOPUP,Not applicable
25/07/16,HOUSING AND COMMUNITY SERVICES,20.00 ,Passenger railways,Travel - Air/Rail/Road,OYSTER BUS AUTOTOP,Not applicable
25/07/16,HOUSING AND COMMUNITY SERVICES,20.00 ,Passenger railways,Travel - Air/Rail/Road,OYSTER AUTOTOPUP,Not applicable
25/07/16,HOUSING AND COMMUNITY SERVICES,20.00 ,Passenger railways,Travel - Air/Rail/Road,OYSTER AUTOTOPUP,Not applicable
28/07/16,HOUSING AND COMMUNITY SERVICES,20.00 ,Passenger railways,Travel - Air/Rail/Road,OYSTER BUS AUTOTOP,Not applicable
28/07/16,HOUSING AND COMMUNITY SERVICES,20.00 ,Passenger railways,Travel - Air/Rail/Road,OYSTER BUS AUTOTOP,Not applicable
29/07/16,HOUSING AND COMMUNITY SERVICES,20.00 ,Passenger railways,Travel - Air/Rail/Road,OYSTER AUTOTOPUP,Not applicable
29/07/16,HOUSING AND COMMUNITY SERVICES,20.00 ,Passenger railways,Travel - Air/Rail/Road,OYSTER BUS AUTOTOP,Not applicable
29/07/16,HOUSING AND COMMUNITY SERVICES,20.00 ,Passenger railways,Travel - Air/Rail/Road,OYSTER BUS AUTOTOP,Not applicable
29/07/16,HOUSING AND COMMUNITY SERVICES,20.00 ,Passenger railways,Travel - Air/Rail/Road,OYSTER BUS AUTOTOP,Not applicable
01/08/16,HOUSING AND COMMUNITY SERVICES,20.00 ,Passenger railways,Travel - Air/Rail/Road,OYSTER AUTOTOPUP,Not applicable
01/08/16,HOUSING AND COMMUNITY SERVICES,20.00 ,Passenger railways,Travel - Air/Rail/Road,OYSTER BUS AUTOTOP,Not applicable
01/08/16,HOUSING AND COMMUNITY SERVICES,20.00 ,Passenger railways,Travel - Air/Rail/Road,OYSTER BUS AUTOTOP,Not applicable
01/08/16,HOUSING AND COMMUNITY SERVICES,20.00 ,Passenger railways,Travel - Air/Rail/Road,OYSTER BUS AUTOTOP,Not applicable
01/08/16,HOUSING AND COMMUNITY SERVICES,20.00 ,Passenger railways,Travel - Air/Rail/Road,OYSTER AUTOTOPUP,Not applicable
01/08/16,HOUSING AND COMMUNITY SERVICES,20.00 ,Passenger railways,Travel - Air/Rail/Road,OYSTER BUS AUTOTOP,Not applicable
01/08/16,HOUSING AND COMMUNITY SERVICES,20.00 ,Passenger railways,Travel - Air/Rail/Road,OYSTER BUS AUTOTOP,Not applicable
04/08/16,HOUSING AND COMMUNITY SERVICES,20.00 ,Passenger railways,Travel - Air/Rail/Road,OYSTER AUTOTOPUP,Not applicable
04/08/16,HOUSING AND COMMUNITY SERVICES,20.00 ,Passenger railways,Travel - Air/Rail/Road,OYSTER BUS AUTOTOP,Not applicable
04/08/16,HOUSING AND COMMUNITY SERVICES,20.00 ,Passenger railways,Travel - Air/Rail/Road,OYSTER BUS AUTOTOP,Not applicable
05/08/16,HOUSING AND COMMUNITY SERVICES,20.00 ,Passenger railways,Travel - Air/Rail/Road,OYSTER BUS AUTOTOP,Not applicable
05/08/16,HOUSING AND COMMUNITY SERVICES,20.00 ,Passenger railways,Travel - Air/Rail/Road,OYSTER BUS AUTOTOP,Not applicable
05/08/16,HOUSING AND COMMUNITY SERVICES,20.00 ,Passenger railways,Travel - Air/Rail/Road,OYSTER BUS AUTOTOP,Not applicable
05/08/16,HOUSING AND COMMUNITY SERVICES,20.00 ,Passenger railways,Travel - Air/Rail/Road,OYSTER BUS AUTOSET,Not applicable
08/08/16,HOUSING AND COMMUNITY SERVICES,20.00 ,Passenger railways,Travel - Air/Rail/Road,OYSTER BUS AUTOTOP,Not applicable
08/08/16,HOUSING AND COMMUNITY SERVICES,20.00 ,Passenger railways,Travel - Air/Rail/Road,OYSTER AUTOTOPUP,Not applicable
08/08/16,HOUSING AND COMMUNITY SERVICES,20.00 ,Passenger railways,Travel - Air/Rail/Road,OYSTER BUS AUTOTOP,Not applicable
08/08/16,HOUSING AND COMMUNITY SERVICES,20.00 ,Passenger railways,Travel - Air/Rail/Road,OYSTER BUS AUTOTOP,Not applicable
08/08/16,HOUSING AND COMMUNITY SERVICES,20.00 ,Passenger railways,Travel - Air/Rail/Road,OYSTER AUTOTOPUP,Not applicable
08/08/16,HOUSING AND COMMUNITY SERVICES,20.00 ,Passenger railways,Travel - Air/Rail/Road,OYSTER BUS AUTOTOP,Not applicable
08/08/16,HOUSING AND COMMUNITY SERVICES,20.00 ,Passenger railways,Travel - Air/Rail/Road,OYSTER AUTOTOPUP,Not applicable
08/08/16,HOUSING AND COMMUNITY SERVICES,20.00 ,Passenger railways,Travel - Air/Rail/Road,OYSTER BUS AUTOTOP,Not applicable
08/08/16,HOUSING AND COMMUNITY SERVICES,20.00 ,Passenger railways,Travel - Air/Rail/Road,OYSTER BUS AUTOTOP,Not applicable
08/08/16,HOUSING AND COMMUNITY SERVICES,20.00 ,Passenger railways,Travel - Air/Rail/Road,OYSTER AUTOTOPUP,Not applicable
11/08/16,HOUSING AND COMMUNITY SERVICES,20.00 ,Passenger railways,Travel - Air/Rail/Road,OYSTER BUS AUTOTOP,Not applicable
15/08/16,HOUSING AND COMMUNITY SERVICES,20.00 ,Passenger railways,Travel - Air/Rail/Road,OYSTER BUS AUTOTOP,Not applicable
15/08/16,HOUSING AND COMMUNITY SERVICES,20.00 ,Passenger railways,Travel - Air/Rail/Road,OYSTER BUS AUTOTOP,Not applicable
15/08/16,HOUSING AND COMMUNITY SERVICES,20.00 ,Passenger railways,Travel - Air/Rail/Road,OYSTER BUS AUTOTOP,Not applicable
15/08/16,HOUSING AND COMMUNITY SERVICES,20.00 ,Passenger railways,Travel - Air/Rail/Road,OYSTER BUS AUTOTOP,Not applicable
15/08/16,HOUSING AND COMMUNITY SERVICES,20.00 ,Passenger railways,Travel - Air/Rail/Road,OYSTER BUS AUTOTOP,Not applicable
15/08/16,HOUSING AND COMMUNITY SERVICES,20.00 ,Passenger railways,Travel - Air/Rail/Road,OYSTER BUS AUTOTOP,Not applicable
15/08/16,HOUSING AND COMMUNITY SERVICES,20.00 ,Passenger railways,Travel - Air/Rail/Road,OYSTER BUS AUTOTOP,Not applicable
18/08/16,HOUSING AND COMMUNITY SERVICES,20.00 ,Passenger railways,Travel - Air/Rail/Road,OYSTER BUS AUTOTOP,Not applicable
18/08/16,HOUSING AND COMMUNITY SERVICES,20.00 ,Passenger railways,Travel - Air/Rail/Road,OYSTER BUS AUTOTOP,Not applicable
18/08/16,HOUSING AND COMMUNITY SERVICES,20.00 ,Passenger railways,Travel - Air/Rail/Road,OYSTER BUS AUTOTOP,Not applicable
18/08/16,HOUSING AND COMMUNITY SERVICES,20.00 ,Passenger railways,Travel - Air/Rail/Road,OYSTER BUS AUTOTOP,Not applicable
18/08/16,HOUSING AND COMMUNITY SERVICES,20.00 ,Passenger railways,Travel - Air/Rail/Road,OYSTER BUS AUTOTOP,Not applicable
19/08/16,HOUSING AND COMMUNITY SERVICES,20.00 ,Passenger railways,Travel - Air/Rail/Road,OYSTER BUS AUTOTOP,Not applicable
22/08/16,HOUSING AND COMMUNITY SERVICES,283.20 ,Misc business services,Miscellaneous Industrial/Commercial Supplies,WWW.PUBLICPOLICYEXCHAN,Not applicable
22/08/16,HOUSING AND COMMUNITY SERVICES,20.00 ,Passenger railways,Travel - Air/Rail/Road,OYSTER BUS AUTOTOP,Not applicable
22/08/16,HOUSING AND COMMUNITY SERVICES,20.00 ,Passenger railways,Travel - Air/Rail/Road,OYSTER BUS AUTOTOP,Not applicable
22/08/16,HOUSING AND COMMUNITY SERVICES,20.00 ,Passenger railways,Travel - Air/Rail/Road,OYSTER BUS AUTOTOP,Not applicable
24/08/16,HOUSING AND COMMUNITY SERVICES,20.00 ,Passenger railways,Travel - Air/Rail/Road,OYSTER AUTOTOPUP,Not applicable
24/08/16,HOUSING AND COMMUNITY SERVICES,20.00 ,Passenger railways,Travel - Air/Rail/Road,OYSTER AUTOTOPUP,Not applicable
25/08/16,HOUSING AND COMMUNITY SERVICES,20.00 ,Passenger railways,Travel - Air/Rail/Road,OYSTER BUS AUTOTOP,Not applicable
26/08/16,HOUSING AND COMMUNITY SERVICES,20.00 ,Passenger railways,Travel - Air/Rail/Road,OYSTER BUS AUTOTOP,Not applicable
29/08/16,HOUSING AND COMMUNITY SERVICES,20.00 ,Passenger railways,Travel - Air/Rail/Road,OYSTER BUS AUTOTOP,Not applicable
29/08/16,HOUSING AND COMMUNITY SERVICES,20.00 ,Passenger railways,Travel - Air/Rail/Road,OYSTER BUS AUTOTOP,Not applicable
29/08/16,HOUSING AND COMMUNITY SERVICES,20.00 ,Passenger railways,Travel - Air/Rail/Road,OYSTER AUTOTOPUP,Not applicable
29/08/16,HOUSING AND COMMUNITY SERVICES,20.00 ,Passenger railways,Travel - Air/Rail/Road,OYSTER BUS AUTOTOP,Not applicable
29/08/16,HOUSING AND COMMUNITY SERVICES,20.00 ,Passenger railways,Travel - Air/Rail/Road,OYSTER AUTOTOPUP,Not applicable
01/09/16,HOUSING AND COMMUNITY SERVICES,20.00 ,Passenger railways,Travel - Air/Rail/Road,OYSTER AUTOTOPUP,Not applicable
02/09/16,HOUSING AND COMMUNITY SERVICES,20.00 ,Passenger railways,Travel - Air/Rail/Road,OYSTER BUS AUTOTOP,Not applicable
02/09/16,HOUSING AND COMMUNITY SERVICES,20.00 ,Passenger railways,Travel - Air/Rail/Road,OYSTER BUS AUTOTOP,Not applicable
02/09/16,HOUSING AND COMMUNITY SERVICES,20.00 ,Passenger railways,Travel - Air/Rail/Road,OYSTER BUS AUTOTOP,Not applicable
05/09/16,HOUSING AND COMMUNITY SERVICES,20.00 ,Passenger railways,Travel - Air/Rail/Road,OYSTER AUTOTOPUP,Not applicable
05/09/16,HOUSING AND COMMUNITY SERVICES,20.00 ,Passenger railways,Travel - Air/Rail/Road,OYSTER BUS AUTOTOP,Not applicable
05/09/16,HOUSING AND COMMUNITY SERVICES,20.00 ,Passenger railways,Travel - Air/Rail/Road,OYSTER BUS AUTOTOP,Not applicable
05/09/16,HOUSING AND COMMUNITY SERVICES,20.00 ,Passenger railways,Travel - Air/Rail/Road,OYSTER BUS AUTOTOP,Not applicable
05/09/16,HOUSING AND COMMUNITY SERVICES,20.00 ,Passenger railways,Travel - Air/Rail/Road,OYSTER BUS AUTOTOP,Not applicable
05/09/16,HOUSING AND COMMUNITY SERVICES,20.00 ,Passenger railways,Travel - Air/Rail/Road,OYSTER AUTOTOPUP,Not applicable
05/09/16,HOUSING AND COMMUNITY SERVICES,20.00 ,Passenger railways,Travel - Air/Rail/Road,OYSTER AUTOTOPUP,Not applicable
08/09/16,HOUSING AND COMMUNITY SERVICES,20.00 ,Passenger railways,Travel - Air/Rail/Road,OYSTER BUS AUTOTOP,Not applicable
09/09/16,HOUSING AND COMMUNITY SERVICES,20.00 ,Passenger railways,Travel - Air/Rail/Road,OYSTER BUS AUTOTOP,Not applicable
12/09/16,HOUSING AND COMMUNITY SERVICES,20.00 ,Passenger railways,Travel - Air/Rail/Road,OYSTER AUTOTOPUP,Not applicable
12/09/16,HOUSING AND COMMUNITY SERVICES,20.00 ,Passenger railways,Travel - Air/Rail/Road,OYSTER AUTOTOPUP,Not applicable
12/09/16,HOUSING AND COMMUNITY SERVICES,20.00 ,Passenger railways,Travel - Air/Rail/Road,OYSTER BUS AUTOTOP,Not applicable
12/09/16,HOUSING AND COMMUNITY SERVICES,20.00 ,Passenger railways,Travel - Air/Rail/Road,OYSTER BUS AUTOTOP,Not applicable
12/09/16,HOUSING AND COMMUNITY SERVICES,20.00 ,Passenger railways,Travel - Air/Rail/Road,OYSTER BUS AUTOTOP,Not applicable
12/09/16,HOUSING AND COMMUNITY SERVICES,20.00 ,Passenger railways,Travel - Air/Rail/Road,OYSTER BUS AUTOTOP,Not applicable
12/09/16,HOUSING AND COMMUNITY SERVICES,20.00 ,Passenger railways,Travel - Air/Rail/Road,OYSTER BUS AUTOTOP,Not applicable
14/09/16,HOUSING AND COMMUNITY SERVICES,20.00 ,Passenger railways,Travel - Air/Rail/Road,OYSTER AUTOTOPUP,Not applicable
15/09/16,HOUSING AND COMMUNITY SERVICES,20.00 ,Passenger railways,Travel - Air/Rail/Road,OYSTER BUS AUTOTOP,Not applicable
15/09/16,HOUSING AND COMMUNITY SERVICES,20.00 ,Passenger railways,Travel - Air/Rail/Road,OYSTER BUS AUTOTOP,Not applicable
15/09/16,HOUSING AND COMMUNITY SERVICES,20.00 ,Passenger railways,Travel - Air/Rail/Road,OYSTER BUS AUTOTOP,Not applicable
16/09/16,HOUSING AND COMMUNITY SERVICES,20.00 ,Passenger railways,Travel - Air/Rail/Road,OYSTER AUTOTOPUP,Not applicable
16/09/16,HOUSING AND COMMUNITY SERVICES,20.00 ,Passenger railways,Travel - Air/Rail/Road,OYSTER AUTOTOPUP,Not applicable
16/09/16,HOUSING AND COMMUNITY SERVICES,20.00 ,Passenger railways,Travel - Air/Rail/Road,OYSTER AUTOTOPUP,Not applicable
16/09/16,HOUSING AND COMMUNITY SERVICES,20.00 ,Passenger railways,Travel - Air/Rail/Road,OYSTER BUS AUTOTOP,Not applicable
16/09/16,HOUSING AND COMMUNITY SERVICES,20.00 ,Passenger railways,Travel - Air/Rail/Road,OYSTER BUS AUTOTOP,Not applicable
16/09/16,HOUSING AND COMMUNITY SERVICES,20.00 ,Passenger railways,Travel - Air/Rail/Road,OYSTER BUS AUTOTOP,Not applicable
19/09/16,HOUSING AND COMMUNITY SERVICES,20.00 ,Passenger railways,Travel - Air/Rail/Road,OYSTER AUTOTOPUP,Not applicable
19/09/16,HOUSING AND COMMUNITY SERVICES,20.00 ,Passenger railways,Travel - Air/Rail/Road,OYSTER BUS AUTOTOP,Not applicable
19/09/16,HOUSING AND COMMUNITY SERVICES,20.00 ,Passenger railways,Travel - Air/Rail/Road,OYSTER BUS AUTOTOP,Not applicable
19/09/16,HOUSING AND COMMUNITY SERVICES,20.00 ,Passenger railways,Travel - Air/Rail/Road,OYSTER BUS AUTOTOP,Not applicable
19/09/16,HOUSING AND COMMUNITY SERVICES,20.00 ,Passenger railways,Travel - Air/Rail/Road,OYSTER AUTOTOPUP,Not applicable
19/09/16,HOUSING AND COMMUNITY SERVICES,20.00 ,Passenger railways,Travel - Air/Rail/Road,OYSTER AUTOTOPUP,Not applicable
19/09/16,HOUSING AND COMMUNITY SERVICES,20.00 ,Passenger railways,Travel - Air/Rail/Road,OYSTER AUTOTOPUP,Not applicable
19/09/16,HOUSING AND COMMUNITY SERVICES,20.00 ,Passenger railways,Travel - Air/Rail/Road,OYSTER AUTOTOPUP,Not applicable
20/09/16,HOUSING AND COMMUNITY SERVICES,20.00 ,Passenger railways,Travel - Air/Rail/Road,OYSTER BUS AUTOTOP,Not applicable
21/09/16,HOUSING AND COMMUNITY SERVICES,20.00 ,Passenger railways,Travel - Air/Rail/Road,OYSTER AUTOTOPUP,Not applicable
22/09/16,HOUSING AND COMMUNITY SERVICES,20.00 ,Passenger railways,Travel - Air/Rail/Road,OYSTER AUTOTOPUP,Not applicable
22/09/16,HOUSING AND COMMUNITY SERVICES,20.00 ,Passenger railways,Travel - Air/Rail/Road,OYSTER AUTOTOPUP,Not applicable
22/09/16,HOUSING AND COMMUNITY SERVICES,20.00 ,Passenger railways,Travel - Air/Rail/Road,OYSTER BUS AUTOTOP,Not applicable
22/09/16,HOUSING AND COMMUNITY SERVICES,20.00 ,Passenger railways,Travel - Air/Rail/Road,OYSTER BUS AUTOTOP,Not applicable
23/09/16,HOUSING AND COMMUNITY SERVICES,20.00 ,Passenger railways,Travel - Air/Rail/Road,OYSTER BUS AUTOTOP,Not applicable
26/09/16,HOUSING AND COMMUNITY SERVICES,20.00 ,Passenger railways,Travel - Air/Rail/Road,OYSTER AUTOTOPUP,Not applicable
26/09/16,HOUSING AND COMMUNITY SERVICES,20.00 ,Passenger railways,Travel - Air/Rail/Road,OYSTER BUS AUTOTOP,Not applicable
26/09/16,HOUSING AND COMMUNITY SERVICES,20.00 ,Passenger railways,Travel - Air/Rail/Road,OYSTER BUS AUTOTOP,Not applicable
26/09/16,HOUSING AND COMMUNITY SERVICES,20.00 ,Passenger railways,Travel - Air/Rail/Road,OYSTER AUTOTOPUP,Not applicable
26/09/16,HOUSING AND COMMUNITY SERVICES,20.00 ,Passenger railways,Travel - Air/Rail/Road,OYSTER BUS AUTOTOP,Not applicable
26/09/16,HOUSING AND COMMUNITY SERVICES,20.00 ,Passenger railways,Travel - Air/Rail/Road,OYSTER BUS AUTOTOP,Not applicable
27/09/16,HOUSING AND COMMUNITY SERVICES,512.00 ,Misc. personal services,Professional Services,J.B.W. GROUP LTD,Not applicable
27/09/16,HOUSING AND COMMUNITY SERVICES,15.00 ,Passenger railways,Travel - Air/Rail/Road,OYSTER ISSUE WEB,Not applicable
27/09/16,HOUSING AND COMMUNITY SERVICES,15.00 ,Passenger railways,Travel - Air/Rail/Road,OYSTER ISSUE WEB,Not applicable
29/09/16,HOUSING AND COMMUNITY SERVICES,277.00 ,Car parking & garages,Travel - Air/Rail/Road,J.B.W. GROUP LTD,Not applicable
29/09/16,HOUSING AND COMMUNITY SERVICES,20.00 ,Passenger railways,Travel - Air/Rail/Road,OYSTER BUS AUTOTOP,Not applicable
30/09/16,HOUSING AND COMMUNITY SERVICES,20.00 ,Passenger railways,Travel - Air/Rail/Road,OYSTER AUTOTOPUP,Not applicable
30/09/16,HOUSING AND COMMUNITY SERVICES,20.00 ,Passenger railways,Travel - Air/Rail/Road,OYSTER AUTOTOPUP,Not applicable
30/09/16,HOUSING AND COMMUNITY SERVICES,20.00 ,Passenger railways,Travel - Air/Rail/Road,OYSTER AUTOTOPUP,Not applicable
30/09/16,HOUSING AND COMMUNITY SERVICES,20.00 ,Passenger railways,Travel - Air/Rail/Road,OYSTER AUTOTOPUP,Not applicable
01/07/16,HOUSING AND COMMUNITY SERVICES,132.50 ,Government services,Statutory Bodies,DVLA VEHICLE TAX,Not applicable
01/07/16,HOUSING AND COMMUNITY SERVICES,132.50 ,Government services,Statutory Bodies,DVLA VEHICLE TAX,Not applicable
01/07/16,HOUSING AND COMMUNITY SERVICES,132.50 ,Government services,Statutory Bodies,DVLA VEHICLE TAX,Not applicable
01/07/16,HOUSING AND COMMUNITY SERVICES,272.50 ,Government services,Statutory Bodies,DVLA VEHICLE TAX,Not applicable
01/07/16,HOUSING AND COMMUNITY SERVICES,232.50 ,Government services,Statutory Bodies,DVLA VEHICLE TAX,Not applicable
01/07/16,HOUSING AND COMMUNITY SERVICES,132.50 ,Government services,Statutory Bodies,DVLA VEHICLE TAX,Not applicable
01/07/16,HOUSING AND COMMUNITY SERVICES,132.50 ,Government services,Statutory Bodies,DVLA VEHICLE TAX,Not applicable
01/07/16,HOUSING AND COMMUNITY SERVICES,222.50 ,Government services,Statutory Bodies,DVLA VEHICLE TAX,Not applicable
01/07/16,HOUSING AND COMMUNITY SERVICES,132.50 ,Government services,Statutory Bodies,DVLA VEHICLE TAX,Not applicable
01/07/16,HOUSING AND COMMUNITY SERVICES,65.00 ,Government services,Statutory Bodies,LONDON BOROUGH OF,Not applicable
01/07/16,HOUSING AND COMMUNITY SERVICES,232.50 ,Government services,Statutory Bodies,DVLA VEHICLE TAX,Not applicable
01/07/16,HOUSING AND COMMUNITY SERVICES,132.50 ,Government services,Statutory Bodies,DVLA VEHICLE TAX,Not applicable
01/07/16,HOUSING AND COMMUNITY SERVICES,132.50 ,Government services,Statutory Bodies,DVLA VEHICLE TAX,Not applicable
01/07/16,HOUSING AND COMMUNITY SERVICES,132.50 ,Government services,Statutory Bodies,DVLA VEHICLE TAX,Not applicable
01/07/16,HOUSING AND COMMUNITY SERVICES,132.50 ,Government services,Statutory Bodies,DVLA VEHICLE TAX,Not applicable
01/07/16,HOUSING AND COMMUNITY SERVICES,272.50 ,Government services,Statutory Bodies,DVLA VEHICLE TAX,Not applicable
01/07/16,HOUSING AND COMMUNITY SERVICES,132.50 ,Government services,Statutory Bodies,DVLA VEHICLE TAX,Not applicable
01/07/16,HOUSING AND COMMUNITY SERVICES,132.50 ,Government services,Statutory Bodies,DVLA VEHICLE TAX,Not applicable
01/07/16,HOUSING AND COMMUNITY SERVICES,132.50 ,Government services,Statutory Bodies,DVLA VEHICLE TAX,Not applicable
01/07/16,HOUSING AND COMMUNITY SERVICES,132.50 ,Government services,Statutory Bodies,DVLA VEHICLE TAX,Not applicable
01/07/16,HOUSING AND COMMUNITY SERVICES,132.50 ,Government services,Statutory Bodies,DVLA VEHICLE TAX,Not applicable
01/07/16,HOUSING AND COMMUNITY SERVICES,65.00 ,Toll and bridge fees,Travel - Air/Rail/Road,TFL PENALTY CHARGE,Not applicable
01/07/16,HOUSING AND COMMUNITY SERVICES,132.50 ,Government services,Statutory Bodies,DVLA VEHICLE TAX,Not applicable
01/07/16,HOUSING AND COMMUNITY SERVICES,132.50 ,Government services,Statutory Bodies,DVLA VEHICLE TAX,Not applicable
01/07/16,HOUSING AND COMMUNITY SERVICES,132.50 ,Government services,Statutory Bodies,DVLA VEHICLE TAX,Not applicable
01/07/16,HOUSING AND COMMUNITY SERVICES,222.50 ,Government services,Statutory Bodies,DVLA VEHICLE TAX,Not applicable
01/07/16,HOUSING AND COMMUNITY SERVICES,132.50 ,Government services,Statutory Bodies,DVLA VEHICLE TAX,Not applicable
01/07/16,HOUSING AND COMMUNITY SERVICES,222.50 ,Government services,Statutory Bodies,DVLA VEHICLE TAX,Not applicable
01/07/16,HOUSING AND COMMUNITY SERVICES,132.50 ,Government services,Statutory Bodies,DVLA VEHICLE TAX,Not applicable
01/07/16,HOUSING AND COMMUNITY SERVICES,232.50 ,Government services,Statutory Bodies,DVLA VEHICLE TAX,Not applicable
05/07/16,HOUSING AND COMMUNITY SERVICES,65.00 ,Toll and bridge fees,Travel - Air/Rail/Road,PARKING CONTROL MGNT (,Not applicable
05/07/16,HOUSING AND COMMUNITY SERVICES,65.00 ,Government services,Statutory Bodies,WWW.LBHF.GOV.UK,Not applicable
05/07/16,HOUSING AND COMMUNITY SERVICES,65.00 ,Government services,Statutory Bodies,LONDON BOROUGH OF,Not applicable
06/07/16,HOUSING AND COMMUNITY SERVICES,307.50 ,Government services,Statutory Bodies,DVSA MOT COMP 2,Not applicable
11/07/16,HOUSING AND COMMUNITY SERVICES,65.00 ,Government services,Statutory Bodies,LONDON BOROUGH OF,Not applicable
12/07/16,HOUSING AND COMMUNITY SERVICES,41.50 ,Car parking & garages,Travel - Air/Rail/Road,WWW.EUROPARKS.COM,Not applicable
12/07/16,HOUSING AND COMMUNITY SERVICES,41.50 ,Car parking & garages,Travel - Air/Rail/Road,WWW.EUROPARKS.COM,Not applicable
26/07/16,HOUSING AND COMMUNITY SERVICES,41.50 ,Car parking & garages,Travel - Air/Rail/Road,WWW.EUROPARKS.COM,Not applicable
28/07/16,HOUSING AND COMMUNITY SERVICES,130.00 ,Toll and bridge fees,Travel - Air/Rail/Road,TFL PENALTY CHARGE,Not applicable
29/07/16,HOUSING AND COMMUNITY SERVICES,23.00 ,Toll and bridge fees,Travel - Air/Rail/Road,TFL CC/LEZ CHARGE,Not applicable
29/07/16,HOUSING AND COMMUNITY SERVICES,65.00 ,Toll and bridge fees,Travel - Air/Rail/Road,TFL PENALTY CHARGE,Not applicable
01/08/16,HOUSING AND COMMUNITY SERVICES,23.00 ,Toll and bridge fees,Travel - Air/Rail/Road,TFL CC/LEZ CHARGE,Not applicable
01/08/16,HOUSING AND COMMUNITY SERVICES,167.50 ,Government services,Statutory Bodies,DVLA VEHICLE TAX,Not applicable
03/08/16,HOUSING AND COMMUNITY SERVICES,232.50 ,Government services,Statutory Bodies,DVLA VEHICLE TAX,Not applicable
04/08/16,HOUSING AND COMMUNITY SERVICES,110.00 ,Government services,Statutory Bodies,LONDON BOROUGH OF,Not applicable
09/08/16,HOUSING AND COMMUNITY SERVICES,65.00 ,Toll and bridge fees,Travel - Air/Rail/Road,TFL CC/LEZ PENALTY,Not applicable
10/08/16,HOUSING AND COMMUNITY SERVICES,14.00 ,Toll and bridge fees,Travel - Air/Rail/Road,TFL CC/LEZ CHARGE,Not applicable
10/08/16,HOUSING AND COMMUNITY SERVICES,65.00 ,Toll and bridge fees,Travel - Air/Rail/Road,TFL PENALTY CHARGE,Not applicable
12/08/16,HOUSING AND COMMUNITY SERVICES,55.00 ,Government services,Statutory Bodies,WWW.BROMLEY.GOV.UK,Not applicable
12/08/16,HOUSING AND COMMUNITY SERVICES,55.00 ,Government services,Statutory Bodies,WWW.BROMLEY.GOV.UK,Not applicable
12/08/16,HOUSING AND COMMUNITY SERVICES,65.00 ,Government services,Statutory Bodies,LONDON BOROUGH OF,Not applicable
16/08/16,HOUSING AND COMMUNITY SERVICES,41.50 ,Car parking & garages,Travel - Air/Rail/Road,WWW.EUROPARKS.COM,Not applicable
19/08/16,HOUSING AND COMMUNITY SERVICES,410.00 ,Government services,Statutory Bodies,DVSA MOT COMP 2,Not applicable
01/09/16,HOUSING AND COMMUNITY SERVICES,65.00 ,Government services,Statutory Bodies,LAMBETH PCN PAYMENTS,Not applicable
02/09/16,HOUSING AND COMMUNITY SERVICES,232.50 ,Government services,Statutory Bodies,DVLA VEHICLE TAX,Not applicable
02/09/16,HOUSING AND COMMUNITY SERVICES,232.50 ,Government services,Statutory Bodies,DVLA VEHICLE TAX,Not applicable
02/09/16,HOUSING AND COMMUNITY SERVICES,167.50 ,Government services,Statutory Bodies,DVLA VEHICLE TAX,Not applicable
02/09/16,HOUSING AND COMMUNITY SERVICES,232.50 ,Government services,Statutory Bodies,DVLA VEHICLE TAX,Not applicable
02/09/16,HOUSING AND COMMUNITY SERVICES,167.50 ,Government services,Statutory Bodies,DVLA VEHICLE TAX,Not applicable
02/09/16,HOUSING AND COMMUNITY SERVICES,167.50 ,Government services,Statutory Bodies,DVLA VEHICLE TAX,Not applicable
02/09/16,HOUSING AND COMMUNITY SERVICES,232.50 ,Government services,Statutory Bodies,DVLA VEHICLE TAX,Not applicable
02/09/16,HOUSING AND COMMUNITY SERVICES,167.50 ,Government services,Statutory Bodies,DVLA VEHICLE TAX,Not applicable
02/09/16,HOUSING AND COMMUNITY SERVICES,167.50 ,Government services,Statutory Bodies,DVLA VEHICLE TAX,Not applicable
02/09/16,HOUSING AND COMMUNITY SERVICES,167.50 ,Government services,Statutory Bodies,DVLA VEHICLE TAX,Not applicable
02/09/16,HOUSING AND COMMUNITY SERVICES,167.50 ,Government services,Statutory Bodies,DVLA VEHICLE TAX,Not applicable
02/09/16,HOUSING AND COMMUNITY SERVICES,167.50 ,Government services,Statutory Bodies,DVLA VEHICLE TAX,Not applicable
02/09/16,HOUSING AND COMMUNITY SERVICES,167.50 ,Government services,Statutory Bodies,DVLA VEHICLE TAX,Not applicable
05/09/16,HOUSING AND COMMUNITY SERVICES,517.50 ,Government services,Statutory Bodies,DVLA VEHICLE TAX,Not applicable
08/09/16,HOUSING AND COMMUNITY SERVICES,41.50 ,Car parking & garages,Travel - Air/Rail/Road,WWW.EUROPARKS.COM,Not applicable
09/09/16,HOUSING AND COMMUNITY SERVICES,65.00 ,Fines,Statutory Bodies,TFL PENALTY CHARGE,Not applicable
09/09/16,HOUSING AND COMMUNITY SERVICES,167.50 ,Government services,Statutory Bodies,DVLA VEHICLE TAX,Not applicable
13/09/16,HOUSING AND COMMUNITY SERVICES,65.00 ,Government services,Statutory Bodies,LAMBETH PCN PAYMENTS,Not applicable
19/09/16,HOUSING AND COMMUNITY SERVICES,65.00 ,Toll and bridge fees,Travel - Air/Rail/Road,TFL ROAD CHARGE,Not applicable
20/09/16,HOUSING AND COMMUNITY SERVICES,65.00 ,Government services,Statutory Bodies,WWW.BROMLEY.GOV.UK,Not applicable
22/09/16,HOUSING AND COMMUNITY SERVICES,65.00 ,Toll and bridge fees,Travel - Air/Rail/Road,TFL ROAD CHARGE,Not applicable
23/09/16,HOUSING AND COMMUNITY SERVICES,410.00 ,Government services,Statutory Bodies,DVSA MOT COMP 2,Not applicable
30/09/16,HOUSING AND COMMUNITY SERVICES,65.00 ,Government services,Statutory Bodies,LAMBETH PCN PAYMENTS,Not applicable
04/07/16,HOUSING AND COMMUNITY SERVICES,192.00 ,Emergency Accommodation,Hotels and Accommodation,TRAVELODGE,Not applicable
04/07/16,HOUSING AND COMMUNITY SERVICES,131.00 ,Emergency Accommodation,Hotels and Accommodation,TRAVELODGE,Not applicable
18/07/16,HOUSING AND COMMUNITY SERVICES,281.00 ,Emergency Accommodation,Hotels and Accommodation,TRAVELODGE,Not applicable
20/07/16,HOUSING AND COMMUNITY SERVICES,104.00 ,Emergency Accommodation,Hotels and Accommodation,TRAVELODGE,Not applicable
21/07/16,HOUSING AND COMMUNITY SERVICES,91.00 ,Emergency Accommodation,Hotels and Accommodation,TRAVELODGE,Not applicable
26/07/16,HOUSING AND COMMUNITY SERVICES,71.00 ,Emergency Accommodation,Hotels and Accommodation,TRAVELODGE,Not applicable
03/08/16,HOUSING AND COMMUNITY SERVICES,81.95 ,Emergency Accommodation,Hotels and Accommodation,TRAVELODGE,Not applicable
04/08/16,HOUSING AND COMMUNITY SERVICES,-33.00 ,Emergency Accommodation,Hotels and Accommodation,TRAVELODGE,Not applicable
04/08/16,HOUSING AND COMMUNITY SERVICES,114.95 ,Emergency Accommodation,Hotels and Accommodation,TRAVELODGE,Not applicable
08/08/16,HOUSING AND COMMUNITY SERVICES,136.80 ,Emergency Accommodation,Hotels and Accommodation,TRAVELODGE,Not applicable
15/08/16,HOUSING AND COMMUNITY SERVICES,200.00 ,Emergency Accommodation,Hotels and Accommodation,TRAVELODGE,Not applicable
15/08/16,HOUSING AND COMMUNITY SERVICES,113.35 ,Emergency Accommodation,Hotels and Accommodation,TRAVELODGE,Not applicable
15/08/16,HOUSING AND COMMUNITY SERVICES,234.05 ,Emergency Accommodation,Hotels and Accommodation,TRAVELODGE,Not applicable
22/08/16,HOUSING AND COMMUNITY SERVICES,-49.00 ,Emergency Accommodation,Hotels and Accommodation,TRAVELODGE,Not applicable
22/08/16,HOUSING AND COMMUNITY SERVICES,59.90 ,Emergency Accommodation,Hotels and Accommodation,TRAVELODGE,Not applicable
22/08/16,HOUSING AND COMMUNITY SERVICES,54.00 ,Emergency Accommodation,Hotels and Accommodation,TRAVELODGE,Not applicable
22/08/16,HOUSING AND COMMUNITY SERVICES,54.00 ,Emergency Accommodation,Hotels and Accommodation,TRAVELODGE,Not applicable
05/09/16,HOUSING AND COMMUNITY SERVICES,219.00 ,Emergency Accommodation,Hotels and Accommodation,TRAVELODGE,Not applicable
05/09/16,HOUSING AND COMMUNITY SERVICES,145.00 ,Emergency Accommodation,Hotels and Accommodation,TRAVELODGE,Not applicable
09/09/16,HOUSING AND COMMUNITY SERVICES,111.00 ,Emergency Accommodation,Hotels and Accommodation,TRAVELODGE,Not applicable
12/09/16,HOUSING AND COMMUNITY SERVICES,71.00 ,Emergency Accommodation,Hotels and Accommodation,TRAVELODGE,Not applicable
12/09/16,HOUSING AND COMMUNITY SERVICES,64.35 ,Emergency Accommodation,Hotels and Accommodation,TRAVELODGE,Not applicable
12/09/16,HOUSING AND COMMUNITY SERVICES,51.00 ,Emergency Accommodation,Hotels and Accommodation,TRAVELODGE,Not applicable
12/09/16,HOUSING AND COMMUNITY SERVICES,55.45 ,Emergency Accommodation,Hotels and Accommodation,TRAVELODGE,Not applicable
19/09/16,HOUSING AND COMMUNITY SERVICES,150.00 ,Emergency Accommodation,Hotels and Accommodation,TRAVELODGE,Not applicable
30/09/16,HOUSING AND COMMUNITY SERVICES,81.00 ,Emergency Accommodation,Hotels and Accommodation,TRAVELODGE,Not applicable
01/07/16,SCHOOLS,709.95 ,Hardware stores,General Retail and Wholesale,CHEAP-ROPE.CO.UK,Not applicable
01/07/16,SCHOOLS,388.00 ,Fireplaces & accessories,General Retail and Wholesale,COMPOST DIR,Not applicable
01/07/16,SCHOOLS,135.34 ,Household appliance stores,General Retail and Wholesale,WILKO.COM,Not applicable
04/07/16,SCHOOLS,79.00 ,Continuous subscriptions,Mail Order / Direct Selling,Amazon Prime,Not applicable
04/07/16,SCHOOLS,-3.90 ,Household appliance stores,General Retail and Wholesale,WILKO.COM,Not applicable
08/07/16,SCHOOLS,375.88 ,"Computers, peripherals & software",Computer Equipment & Services,WWW.CBCCOMPUTERS.COM,Not applicable
11/07/16,SCHOOLS,20.00 ,Passenger railways,Travel - Air/Rail/Road,OYSTER BUS AUTOTOP,Not applicable
11/07/16,SCHOOLS,44.45 ,Grocery stores,General Retail and Wholesale,TESCO STORES 5999,Not applicable
12/07/16,SCHOOLS,193.90 ,Grocery stores,General Retail and Wholesale,TESCO STORE 3031,Not applicable
13/07/16,SCHOOLS,638.40 ,Misc business services,Miscellaneous Industrial/Commercial Supplies,DIRECT STORAGE LIMITED,Not applicable
14/07/16,SCHOOLS,96.65 ,Book stores,Books and Periodicals,AMAZON UK MARKETPLACE,Not applicable
18/07/16,SCHOOLS,29.94 ,Direct sales companies,Mail Order / Direct Selling,AMAZON EU,Not applicable
25/07/16,SCHOOLS,213.00 ,Computer software stores,Computer Equipment & Services,RACK SUPPLIER LTD,Not applicable
29/07/16,SCHOOLS,63.48 ,Grocery stores,General Retail and Wholesale,TESCO STORES 5999,Not applicable
01/08/16,SCHOOLS,317.81 ,Timber & building supplies,Building Materials,WICKES BUILDING,Not applicable
05/08/16,SCHOOLS,50.17 ,Book stores,Books and Periodicals,AMAZON UK MARKETPLACE,Not applicable
05/08/16,SCHOOLS,9.68 ,Book stores,Books and Periodicals,AMAZON UK MARKETPLACE,Not applicable
08/08/16,SCHOOLS,14.08 ,Direct sales companies,Mail Order / Direct Selling,AMAZON EU,Not applicable
12/08/16,SCHOOLS,99.99 ,Timber & building supplies,Building Materials,TRADE UK,Not applicable
12/08/16,SCHOOLS,276.00 ,Furniture & home furnishing,General Retail and Wholesale,WWW.FURNITUREATWORK.CO,Not applicable
26/08/16,SCHOOLS,1070.40 ,Misc business services,Miscellaneous Industrial/Commercial Supplies,AMAZONPAYMENTS.CO.UK,Not applicable
01/09/16,SCHOOLS,125.68 ,Grocery stores,General Retail and Wholesale,TESCO STORES 5999,Not applicable
08/09/16,SCHOOLS,-101.98 ,Home supply warehouse stores,General Retail and Wholesale,WICKES,Not applicable
12/09/16,SCHOOLS,409.67 ,Timber & building supplies,Building Materials,TRADE UK,Not applicable
12/09/16,SCHOOLS,267.44 ,Timber & building supplies,Building Materials,TRADE UK,Not applicable
12/09/16,SCHOOLS,179.11 ,Timber & building supplies,Building Materials,TRADE UK,Not applicable
12/09/16,SCHOOLS,133.74 ,Timber & building supplies,Building Materials,TRADE UK,Not applicable
12/09/16,SCHOOLS,32.00 ,Discount stores,General Retail and Wholesale,POUNDLAND.CO.UK,Not applicable
14/09/16,SCHOOLS,76.38 ,Misc non-durable goods,Miscellaneous Industrial/Commercial Supplies,EASTGRINSTE,Not applicable
15/09/16,SCHOOLS,59.05 ,Timber & building supplies,Building Materials,TRADE UK,Not applicable
16/09/16,SCHOOLS,-10.05 ,Computer software stores,Computer Equipment & Services,RACK SUPPLIER LTD,Not applicable
20/09/16,SCHOOLS,89.87 ,Grocery stores,General Retail and Wholesale,TESCO STORES 5999,Not applicable
01/07/16,SCHOOLS,8.97 ,Direct sales companies,Mail Order / Direct Selling,Amazon UK Retail,Not applicable
04/07/16,SCHOOLS,124.00 ,Grocery stores,General Retail and Wholesale,MARKS&SPENCER PLC,Not applicable
04/07/16,SCHOOLS,23.38 ,Direct sales companies,Mail Order / Direct Selling,Amazon UK Retail,Not applicable
05/07/16,SCHOOLS,27.28 ,Book stores,Books and Periodicals,AMAZON UK MARKETPLACE,Not applicable
08/07/16,SCHOOLS,15.68 ,Book stores,Books and Periodicals,AMAZON UK MARKETPLACE,Not applicable
12/07/16,SCHOOLS,16.95 ,Book stores,Books and Periodicals,AMAZON UK MARKETPLACE,Not applicable
22/07/16,SCHOOLS,229.44 ,Book stores,Books and Periodicals,WWW.SPOTTEDPENGUIN,Not applicable
22/07/16,SCHOOLS,354.50 ,Book stores,Books and Periodicals,METRO WASTE (LONDON) L,Not applicable
01/09/16,SCHOOLS,63.92 ,Book stores,Books and Periodicals,AIRSERVER,Not applicable
02/09/16,SCHOOLS,27.72 ,Book stores,Books and Periodicals,AMAZON UK MARKETPLACE,Not applicable
05/09/16,SCHOOLS,17.16 ,Direct sales companies,Mail Order / Direct Selling,AMAZON EU,Not applicable
05/09/16,SCHOOLS,65.51 ,Misc Industrial supplies,Miscellaneous Industrial/Commercial Supplies,WWW.KITEPACKAGING.CO.U,Not applicable
05/09/16,SCHOOLS,17.15 ,Miscellaneous retail,General Retail and Wholesale,AMAZON UK RETAIL AMAZO,Not applicable
05/09/16,SCHOOLS,56.19 ,Book stores,Books and Periodicals,AMAZON UK MARKETPLACE,Not applicable
06/09/16,SCHOOLS,39.53 ,Direct sales companies,Mail Order / Direct Selling,AMAZON EU,Not applicable
06/09/16,SCHOOLS,24.70 ,Miscellaneous retail,General Retail and Wholesale,WWW.BADGESPLUS.CO.UK,Not applicable
06/09/16,SCHOOLS,22.79 ,Miscellaneous retail,General Retail and Wholesale,AMAZON UK MARKETPLACE,Not applicable
06/09/16,SCHOOLS,79.07 ,Miscellaneous retail,General Retail and Wholesale,AMAZON UK RETAIL AMAZO,Not applicable
07/09/16,SCHOOLS,5.23 ,Book stores,Books and Periodicals,AMAZON UK MARKETPLACE,Not applicable
07/09/16,SCHOOLS,24.50 ,Grocery stores,General Retail and Wholesale,ASDA 4387,Not applicable
09/09/16,SCHOOLS,19.72 ,Direct sales companies,Mail Order / Direct Selling,AMAZON EU,Not applicable
09/09/16,SCHOOLS,31.70 ,Direct sales companies,Mail Order / Direct Selling,POSTERLOUNGE GMBH,Not applicable
14/09/16,SCHOOLS,-39.53 ,Direct sales companies,Mail Order / Direct Selling,AMAZON EU,Not applicable
14/09/16,SCHOOLS,36.15 ,Miscellaneous retail,General Retail and Wholesale,AMAZON UK RETAIL AMAZO,Not applicable
15/09/16,SCHOOLS,140.00 ,Miscellaneous retail,General Retail and Wholesale,WWW.JUSTFLUTES.COM,Not applicable
19/09/16,SCHOOLS,12.95 ,Miscellaneous retail,General Retail and Wholesale,ASDA 4387,Not applicable
20/09/16,SCHOOLS,248.00 ,Miscellaneous retail,General Retail and Wholesale,SOUTH WEST SWIMMING SC,Not applicable
23/09/16,SCHOOLS,9.00 ,Miscellaneous retail,General Retail and Wholesale,SP  BRAKE THE ROAD S,Not applicable
26/09/16,SCHOOLS,633.00 ,Miscellaneous retail,General Retail and Wholesale,JOHN LEWIS,Not applicable
28/09/16,SCHOOLS,52.33 ,Miscellaneous retail,General Retail and Wholesale,WWW.BADGESPLUS.CO.UK,Not applicable
28/09/16,SCHOOLS,27.95 ,Miscellaneous retail,General Retail and Wholesale,KEDA PUBLICATIONS,Not applicable
28/09/16,SCHOOLS,63.50 ,Miscellaneous retail,General Retail and Wholesale,WWW.SWIMMING.ORG,Not applicable
29/09/16,SCHOOLS,-52.33 ,Miscellaneous retail,General Retail and Wholesale,WWW.BADGESPLUS.CO.UK,Not applicable
04/07/16,SCHOOLS,90.00,Professional services,Professional Services,CIPD MEMBERSHIP RENEWA,Not applicable
04/07/16,SCHOOLS,114.20,"Gift, card & novelty shops",General Retail and Wholesale,CAKETOPPERS.CO.UK,Not applicable
07/07/16,SCHOOLS,66.00,Florist supplies & nursery stock,Estate and Garden Services,THE SECRET GARDEN,Not applicable
13/07/16,SCHOOLS,320.34,Automotive parts & accessories,"Vehicles, Servicing and Spares",AUTOGLASS,Not applicable
14/07/16,SCHOOLS,309.62,Membership organisations,Clubs/Associations/Organisations,GENTLETEACHING.COM THR,Not applicable
14/07/16,SCHOOLS,309.62,Membership organisations,Clubs/Associations/Organisations,GENTLETEACHING.COM THR,Not applicable
14/07/16,SCHOOLS,309.62,Membership organisations,Clubs/Associations/Organisations,GENTLETEACHING.COM THR,Not applicable
19/07/16,SCHOOLS,19.49,Book stores,Books and Periodicals,AMAZON UK MARKETPLACE,Not applicable
20/07/16,SCHOOLS,7.50,Book stores,Books and Periodicals,AMAZON UK MARKETPLACE,Not applicable
20/07/16,SCHOOLS,24.47,Book stores,Books and Periodicals,AMAZON UK MARKETPLACE,Not applicable
29/07/16,SCHOOLS,303.04,Easyjet,Travel - Air/Rail/Road,EASYJET,Not applicable
29/07/16,SCHOOLS,199.00,Easyjet,Travel - Air/Rail/Road,EASYJET,Not applicable
07/09/16,SCHOOLS,100.00,Premier Inn,Hotels and Accommodation,PREMIER INN,Not applicable
15/09/16,SCHOOLS,633.02,Automotive parts & accessories,"Vehicles, Servicing and Spares",BUGGY PARTS DIRECT,Not applicable
30/09/16,SCHOOLS,8.00,Transportation services,Travel - Air/Rail/Road,ATM M3 CROCETTA,Not applicable
30/09/16,SCHOOLS,120.08,Fast food restaurants,Restaurants and Bars,GRAN CAFE' VISCONTEO,Not applicable
05/07/16,SCHOOLS,119.14,Grocery stores,General Retail and Wholesale,TESCO STORES 5999,Not applicable
08/07/16,SCHOOLS,2.90,Book stores,Books and Periodicals,AMAZON UK MARKETPLACE,Not applicable
12/07/16,SCHOOLS,119.71,Grocery stores,General Retail and Wholesale,TESCO STORES 5999,Not applicable
07/09/16,SCHOOLS,144.26,Grocery stores,General Retail and Wholesale,TESCO STORES 5999,Not applicable
13/09/16,SCHOOLS,119.35,Grocery stores,General Retail and Wholesale,TESCO STORES 5999,Not applicable
20/09/16,SCHOOLS,129.49,Grocery stores,General Retail and Wholesale,TESCO STORES 5999,Not applicable
21/09/16,SCHOOLS,6.58,Book stores,Books and Periodicals,AMAZON UK MARKETPLACE,Not applicable
22/09/16,SCHOOLS,26.19,Direct sales companies,Mail Order / Direct Selling,AMAZON EU,Not applicable
22/09/16,SCHOOLS,37.64,Book stores,Books and Periodicals,AMAZON UK MARKETPLACE,Not applicable
22/09/16,SCHOOLS,16.88,Stationery & office supplies stores,"Office Stationery, Equipment and Supplies",WWW.RYMAN.CO.UK,Not applicable
23/09/16,SCHOOLS,51.32,Book stores,Books and Periodicals,AMAZON UK MARKETPLACE,Not applicable
27/09/16,SCHOOLS,162.72,Grocery stores,General Retail and Wholesale,TESCO STORES 5999,Not applicable
28/09/16,SCHOOLS,15.95,Book stores,Books and Periodicals,AMAZON UK MARKETPLACE,Not applicable
28/09/16,SCHOOLS,18.97,Book stores,Books and Periodicals,AMAZON UK MARKETPLACE,Not applicable
29/09/16,SCHOOLS,11.90,Book stores,Books and Periodicals,AMAZON UK MARKETPLACE,Not applicable
01/07/16,SCHOOLS,125.95,Art & craft shops,General Retail and Wholesale,HOBBYCRAFT (INTERNET),Not applicable
05/07/16,SCHOOLS,2.98,Book stores,Books and Periodicals,AMAZON UK MARKETPLACE,Not applicable
05/07/16,SCHOOLS,4.30,Book stores,Books and Periodicals,AMAZON UK MARKETPLACE,Not applicable
06/07/16,SCHOOLS,4.44,Book stores,Books and Periodicals,AMAZON UK MARKETPLACE,Not applicable
06/07/16,SCHOOLS,3.15,Book stores,Books and Periodicals,AMAZON UK MARKETPLACE,Not applicable
07/07/16,SCHOOLS,19.97,Book stores,Books and Periodicals,AMAZON UK MARKETPLACE,Not applicable
08/07/16,SCHOOLS,10.91,Book stores,Books and Periodicals,AMAZON UK MARKETPLACE,Not applicable
08/09/16,SCHOOLS,201.00,Book stores,Books and Periodicals,AMAZON UK MARKETPLACE,Not applicable
08/09/16,SCHOOLS,158.94,Discount stores,General Retail and Wholesale,ARGOS DIRECT,Not applicable
08/09/16,SCHOOLS,317.57,Misc Industrial supplies,Miscellaneous Industrial/Commercial Supplies,WWW.REALLYUSEFULSTORAG,Not applicable
09/09/16,SCHOOLS,107.84,Miscellaneous retail,General Retail and Wholesale,AMAZON UK RETAIL AMAZO,Not applicable
09/09/16,SCHOOLS,98.67,Book stores,Books and Periodicals,AMAZON UK MARKETPLACE,Not applicable
14/09/16,SCHOOLS,12.98,Book stores,Books and Periodicals,AMAZON UK MARKETPLACE,Not applicable
14/09/16,SCHOOLS,9.21,Book stores,Books and Periodicals,AMAZON UK MARKETPLACE,Not applicable
14/09/16,SCHOOLS,24.52,Direct sales companies,Mail Order / Direct Selling,AMAZON EU,Not applicable
22/09/16,SCHOOLS,18.99,Book stores,Books and Periodicals,AMAZON UK MARKETPLACE,Not applicable
22/09/16,SCHOOLS,13.95,Book stores,Books and Periodicals,AMAZON UK MARKETPLACE,Not applicable
23/09/16,SCHOOLS,10.39,Book stores,Books and Periodicals,AMAZON UK MARKETPLACE,Not applicable
23/09/16,SCHOOLS,32.96,Book stores,Books and Periodicals,AMAZON UK MARKETPLACE,Not applicable
26/09/16,SCHOOLS,13.30,Book stores,Books and Periodicals,AMAZON UK MARKETPLACE,Not applicable
26/09/16,SCHOOLS,13.26,Book stores,Books and Periodicals,AMAZON UK MARKETPLACE,Not applicable
28/09/16,SCHOOLS,14.38,Book stores,Books and Periodicals,AMAZON UK MARKETPLACE,Not applicable
11/07/16,SCHOOLS,25.73,Miscellaneous retail,General Retail and Wholesale,AMAZON UK RETAIL AMAZO,Not applicable
01/09/16,SCHOOLS,113.99,Computer network information services,Computer Equipment & Services,WWW.HEARTINTERNET.COM,Not applicable
06/09/16,SCHOOLS,47.99,Membership organisations,Clubs/Associations/Organisations,TWINKL LTD,Not applicable
07/09/16,SCHOOLS,289.98,Discount stores,General Retail and Wholesale,ARGOS RETAIL GROUP,Not applicable
08/09/16,SCHOOLS,39.99,Advertising services,Print and Advertising,GUMTREE COM,Not applicable
08/09/16,SCHOOLS,39.99,Advertising services,Print and Advertising,GUMTREE COM,Not applicable
08/09/16,SCHOOLS,39.99,Advertising services,Print and Advertising,GUMTREE COM,Not applicable
08/09/16,SCHOOLS,7.84,Book stores,Books and Periodicals,AMAZON UK MARKETPLACE,Not applicable
09/09/16,SCHOOLS,60.84,Stationery & office supplies stores,"Office Stationery, Equipment and Supplies",MIL/SUPERSTICKERS-,Not applicable
16/09/16,SCHOOLS,9.00,Department stores,General Retail and Wholesale,JOHN LEWIS,Not applicable
16/09/16,SCHOOLS,132.81,"Computers, peripherals & software",Computer Equipment & Services,AIRSERVER,Not applicable
23/09/16,SCHOOLS,26.90,Miscellaneous retail,General Retail and Wholesale,AMAZON UK RETAIL AMAZO,Not applicable
27/09/16,SCHOOLS,4.99,Book stores,Books and Periodicals,AMAZON UK MARKETPLACE,Not applicable
28/09/16,SCHOOLS,15.99,Book stores,Books and Periodicals,AMAZON UK MARKETPLACE,Not applicable
28/09/16,SCHOOLS,10.98,Direct sales companies,Mail Order / Direct Selling,AMAZON EU,Not applicable
28/09/16,SCHOOLS,50.00,Passenger railways,Travel - Air/Rail/Road,OYSTER RENEW WEB,Not applicable
28/09/16,SCHOOLS,5.58,Book stores,Books and Periodicals,AMAZON UK MARKETPLACE,Not applicable
28/09/16,SCHOOLS,2.76,Book stores,Books and Periodicals,AMAZON UK MARKETPLACE,Not applicable
28/09/16,SCHOOLS,6.66,Book stores,Books and Periodicals,AMAZON UK MARKETPLACE,Not applicable
29/09/16,SCHOOLS,5.08,Book stores,Books and Periodicals,AMAZON UK MARKETPLACE,Not applicable
30/09/16,SCHOOLS,87.00,Miscellaneous retail,General Retail and Wholesale,AMAZON UK RETAIL AMAZO,Not applicable
08/07/16,SCHOOLS,17.16,Direct sales companies,Mail Order / Direct Selling,AMAZON EU,Not applicable
14/09/16,SCHOOLS,30.00,Grocery stores,General Retail and Wholesale,MARKS&SPENCER PLC,Not applicable
19/09/16,SCHOOLS,16.32,Book stores,Books and Periodicals,AMAZON UK MARKETPLACE,Not applicable
23/09/16,SCHOOLS,24.95,Direct sales companies,Mail Order / Direct Selling,AMAZON EU,Not applicable
